Workbook

Sheet LevelbattleConfig
A1: ID | C1: Group | D1: awardDrop | E1: awardNum | F1: combatTime | G1: combatType | H1: MonsterGroupTruePower | I1: MonsterGroupPower
A2: int | C2: int[] | D2: int[] | E2: int[] | F2: float | G2: int | H2: int | I2: int
A4: 战斗组ID | B4: 使用位置 | C4: 包含的组ID （就是第二页的ID) | D4: 奖励随机掉落组 | E4: 奖励道具数量 | F4: 用时(秒） | G4: 玩法类型 1.正常 2.追逐 3.站桩 4.保卫水晶 5.至少完成x波 （406260） 6.至少坚持x秒 （406261） | H4: 怪物战斗组修为（实际） | I4: 怪物战斗组修为（表现） | J4: 评分修正 例如3人参战填75% | L4: 怪物等级上浮 | Q4: 事件ID | R4: 怪物等级
A5: 100001 | B5: 主线1-1 | C5: =A5 -> 100001 | D5: -1 | E5: -1 | F5: 120 | G5: 1 | H5: 100 | I5: 100 | K5: 1-1
A6: 100002 | B6: 主线1-1 | C6: =A6 -> 100002 | D6: -1 | E6: -1 | F6: 120 | G6: 1 | H6: 100 | I6: 100 | K6: 1-1
A7: 100003 | B7: 主线1-1 | C7: =A7 -> 100003 | D7: -1 | E7: -1 | F7: 120 | G7: 1 | H7: 100 | I7: 100 | K7: 1-1 | L7: 1
A8: 100004 | B8: boss | C8: =A8 -> 100004 | D8: -1 | E8: -1 | F8: 120 | G8: 1 | H8: 100 | I8: 100 | K8: 1-1 | L8: 1
A11: 1002 | B11: =_xlfn.TEXTJOIN("-",1,M11:N11) -> 主线-击败结界兽 | C11: 1002 | D11: -1 | E11: -1 | F11: 120 | G11: 1 | H11: 100 | I11: 100 | M11: 主线 | N11: 击败结界兽 | O11: 10004 | P11: 5 | Q11: =VLOOKUP(A11,[1]EventLinkConfig!$Y:$AM,15,FALSE) -> 10004 | R11: =VLOOKUP(Q11,[1]EventConfig!$A:$P,16,FALSE) -> 6
A12: =A11+1 -> 1003 | B12: 主线-击败痴道人 | C12: 1003 | D12: -1 | E12: -1 | F12: 120 | G12: 1 | H12: 100 | I12: 100 | M12: 主线 | N12: 击败痴道人 | O12: 10007 | P12: 15 | Q12: =VLOOKUP(A12,[1]EventLinkConfig!$Y:$AM,15,FALSE) -> 10007 | R12: =VLOOKUP(Q12,[1]EventConfig!$A:$P,16,FALSE) -> 16
A13: 1004 | B13: 主线-妖兽横行 | C13: 1004 | D13: -1 | E13: -1 | F13: 120 | G13: 1 | H13: 100 | I13: 100 | M13: 主线 | N13: 妖兽横行 | O13: 10010 | P13: 25 | Q13: 10010 | R13: =VLOOKUP(Q13,[1]EventConfig!$A:$P,16,FALSE) -> 25
A14: 1005 | B14: 主线-击败后山小妖 | C14: 1005 | D14: -1 | E14: -1 | F14: 120 | G14: 1 | H14: 100 | I14: 100 | M14: 主线 | N14: 击败后山小妖 | O14: 10015 | P14: 45 | Q14: 10015 | R14: =VLOOKUP(Q14,[1]EventConfig!$A:$P,16,FALSE) -> 46
A15: 1006 | B15: 主线-击败夜袭的妖兽 | C15: 1006 | D15: -1 | E15: -1 | F15: 120 | G15: 1 | H15: 100 | I15: 100 | M15: 主线 | N15: 击败夜袭的妖兽 | O15: 10016 | P15: 50 | Q15: 10016 | R15: =VLOOKUP(Q15,[1]EventConfig!$A:$P,16,FALSE) -> 51
A16: 1007 | B16: 主线-击败峰顶的妖王 | C16: 1007 | D16: -1 | E16: -1 | F16: 120 | G16: 1 | H16: 100 | I16: 100 | M16: 主线 | N16: 击败峰顶的妖王 | O16: 10017 | P16: 55 | Q16: 10017 | R16: =VLOOKUP(Q16,[1]EventConfig!$A:$P,16,FALSE) -> 56
A17: 1008 | B17: 主线-击败仙山的阵眼妖兽 | C17: 1008 | D17: -1 | E17: -1 | F17: 120 | G17: 1 | H17: 100 | I17: 100 | M17: 主线 | N17: 击败仙山的阵眼妖兽 | O17: 10023 | P17: 85 | Q17: 10023 | R17: =VLOOKUP(Q17,[1]EventConfig!$A:$P,16,FALSE) -> 86
A18: 1009 | B18: 主线-击杀灵兽获得天肥 | C18: 1009 | D18: -1 | E18: -1 | F18: 120 | G18: 1 | H18: 100 | I18: 100 | M18: 主线 | N18: 击杀灵兽获得天肥 | O18: 10025 | P18: 95 | Q18: 10025 | R18: =VLOOKUP(Q18,[1]EventConfig!$A:$P,16,FALSE) -> 101
A19: 1010 | B19: =_xlfn.TEXTJOIN("-",1,M19:N19) -> 主线-击败小麻雀的幻影 | C19: =A19 -> 1010 | D19: -1 | E19: -1 | F19: 120 | G19: 1 | H19: 100 | I19: 100 | M19: 主线 | N19: 击败小麻雀的幻影 | O19: 10027 | P19: 100 | Q19: =VLOOKUP(A19,[1]EventLinkConfig!$Y:$AM,15,FALSE) -> 10027 | R19: =VLOOKUP(Q19,[1]EventConfig!$A:$P,16,FALSE) -> 121
A20: 1011 | B20: =_xlfn.TEXTJOIN("-",1,M20:N20) -> 主线-击败痴道人的幻影 | C20: =A20 -> 1011 | D20: -1 | E20: -1 | F20: 120 | G20: 1 | H20: 100 | I20: 100 | M20: 主线 | N20: 击败痴道人的幻影 | O20: 10027 | P20: 110 | Q20: =VLOOKUP(A20,[1]EventLinkConfig!$Y:$AM,15,FALSE) -> 10027 | R20: =VLOOKUP(Q20,[1]EventConfig!$A:$P,16,FALSE) -> 121
A21: 1012 | B21: =_xlfn.TEXTJOIN("-",1,M21:N21) -> 主线-樗木之灵的幻影 | C21: =A21 -> 1012 | D21: -1 | E21: -1 | F21: 120 | G21: 1 | H21: 100 | I21: 100 | M21: 主线 | N21: 樗木之灵的幻影 | O21: 10027 | P21: 120 | Q21: =VLOOKUP(A21,[1]EventLinkConfig!$Y:$AM,15,FALSE) -> 10027 | R21: =VLOOKUP(Q21,[1]EventConfig!$A:$P,16,FALSE) -> 121
A22: 1013 | B22: =_xlfn.TEXTJOIN("-",1,M22:N22) -> 主线-击败心魔 | C22: =A22 -> 1013 | D22: -1 | E22: -1 | F22: 120 | G22: 1 | H22: 100 | I22: 100 | M22: 主线 | N22: 击败心魔 | O22: 10030 | P22: 140 | Q22: =VLOOKUP(A22,[1]EventLinkConfig!$Y:$AM,15,FALSE) -> 10030 | R22: =VLOOKUP(Q22,[1]EventConfig!$A:$P,16,FALSE) -> 141
A23: 1014 | B23: 主线-击败北海妖兽2 | C23: 1014 | D23: -1 | E23: -1 | F23: 120 | G23: 1 | H23: 100 | I23: 100 | M23: 主线 | N23: 击败北海妖兽2 | O23: 10031 | P23: 150 | Q23: =VLOOKUP(A23,[1]EventLinkConfig!$Y:$AM,15,FALSE) -> 10031 | R23: =VLOOKUP(Q23,[1]EventConfig!$A:$P,16,FALSE) -> 151
A24: 1015 | B24: =_xlfn.TEXTJOIN("-",1,M24:N24) -> 主线-击败北海妖兽1 | C24: =A24 -> 1015 | D24: -1 | E24: -1 | F24: 120 | G24: 1 | H24: 100 | I24: 100 | M24: 主线 | N24: 击败北海妖兽1 | O24: 10010 | P24: 25 | Q24: 10010 | R24: =VLOOKUP(Q24,[1]EventConfig!$A:$P,16,FALSE) -> 25
A25: 1016 | B25: =_xlfn.TEXTJOIN("-",1,M25:N25) -> 主线-与樗木之灵切磋 | C25: =A25 -> 1016 | D25: -1 | E25: -1 | F25: 120 | G25: 1 | H25: 100 | I25: 100 | M25: 主线 | N25: 与樗木之灵切磋 | O25: 10020 | P25: 65 | Q25: =VLOOKUP(A25,[1]EventLinkConfig!$Y:$AM,15,FALSE) -> 10020 | R25: =VLOOKUP(Q25,[1]EventConfig!$A:$P,16,FALSE) -> 69
A48: 3001 | B48: =_xlfn.TEXTJOIN("-",1,M48:N48) -> 道侣雀灵儿-击败风妖 | C48: =A48 -> 3001 | D48: -1 | E48: -1 | F48: 120 | G48: 1 | H48: 100 | I48: 100 | M48: 道侣雀灵儿 | N48: 击败风妖 | O48: 6003 | P48: =VLOOKUP(O48,[1]EventConfig!$A:$P,16,FALSE) -> 15 | Q48: =VLOOKUP(A48,[1]EventLinkConfig!$Y:$AM,15,FALSE) -> 6003 | R48: =VLOOKUP(Q48,[1]EventConfig!$A:$P,16,FALSE) -> 15
A49: 3002 | B49: =_xlfn.TEXTJOIN("-",1,M49:N49) -> 道侣雀灵儿-击败大风妖兽 | C49: =A49 -> 3002 | D49: -1 | E49: -1 | F49: 120 | G49: 1 | H49: 100 | I49: 100 | M49: 道侣雀灵儿 | N49: 击败大风妖兽 | O49: 6003 | P49: =VLOOKUP(O49,[1]EventConfig!$A:$P,16,FALSE) -> 15 | Q49: =VLOOKUP(A49,[1]EventLinkConfig!$Y:$AM,15,FALSE) -> 6005 | R49: =VLOOKUP(Q49,[1]EventConfig!$A:$P,16,FALSE) -> 25
A50: =A49+1 -> 3003 | B50: =_xlfn.TEXTJOIN("-",1,M50:N50) -> 道侣云枝-击败风妖 | C50: =A50 -> 3003 | D50: -1 | E50: -1 | F50: 120 | G50: 1 | H50: 100 | I50: 100 | M50: 道侣云枝 | N50: 击败风妖 | O50: 6011 | P50: =VLOOKUP(O50,[1]EventConfig!$A:$P,16,FALSE) -> 20 | Q50: 6011 | R50: =VLOOKUP(Q50,[1]EventConfig!$A:$P,16,FALSE) -> 20
A51: 3004 | B51: =_xlfn.TEXTJOIN("-",1,M51:N51) -> 道侣云枝-击败风妖2 | C51: =A51 -> 3004 | D51: -1 | E51: -1 | F51: 120 | G51: 1 | H51: 100 | I51: 100 | M51: 道侣云枝 | N51: 击败风妖2 | O51: 6012 | P51: =VLOOKUP(O51,[1]EventConfig!$A:$P,16,FALSE) -> 30 | Q51: =VLOOKUP(A51,[1]EventLinkConfig!$Y:$AM,15,FALSE) -> 6012 | R51: =VLOOKUP(Q51,[1]EventConfig!$A:$P,16,FALSE) -> 30
A52: 3005 | B52: =_xlfn.TEXTJOIN("-",1,M52:N52) -> 道侣云枝-击败风妖3 | C52: =A52 -> 3005 | D52: -1 | E52: -1 | F52: 120 | G52: 1 | H52: 100 | I52: 100 | M52: 道侣云枝 | N52: 击败风妖3 | O52: 6013 | P52: =VLOOKUP(O52,[1]EventConfig!$A:$P,16,FALSE) -> 40 | Q52: =VLOOKUP(A52,[1]EventLinkConfig!$Y:$AM,15,FALSE) -> 6012 | R52: =VLOOKUP(Q52,[1]EventConfig!$A:$P,16,FALSE) -> 30
A53: 3006 | B53: =_xlfn.TEXTJOIN("-",1,M53:N53) -> 道侣云枝-击败风妖4 | C53: =A53 -> 3006 | D53: -1 | E53: -1 | F53: 120 | G53: 1 | H53: 100 | I53: 100 | M53: 道侣云枝 | N53: 击败风妖4 | O53: 6013 | P53: =VLOOKUP(O53,[1]EventConfig!$A:$P,16,FALSE) -> 40 | Q53: =VLOOKUP(A53,[1]EventLinkConfig!$Y:$AM,15,FALSE) -> 6013 | R53: =VLOOKUP(Q53,[1]EventConfig!$A:$P,16,FALSE) -> 40
A54: 3007 | B54: =_xlfn.TEXTJOIN("-",1,M54:N54) -> 道侣云枝-击败风妖4 | C54: =A54 -> 3007 | D54: -1 | E54: -1 | F54: 120 | G54: 1 | H54: 100 | I54: 100 | M54: 道侣云枝 | N54: 击败风妖4 | O54: 6015 | P54: =VLOOKUP(O54,[1]EventConfig!$A:$P,16,FALSE) -> 60 | Q54: =VLOOKUP(A54,[1]EventLinkConfig!$Y:$AM,15,FALSE) -> 6015 | R54: =VLOOKUP(Q54,[1]EventConfig!$A:$P,16,FALSE) -> 60
A55: 3008 | B55: =_xlfn.TEXTJOIN("-",1,M55:N55) -> 道侣云枝-击败风妖5 | C55: =A55 -> 3008 | D55: -1 | E55: -1 | F55: 120 | G55: 1 | H55: 100 | I55: 100 | M55: 道侣云枝 | N55: 击败风妖5 | O55: 6015 | P55: =VLOOKUP(O55,[1]EventConfig!$A:$P,16,FALSE) -> 60 | Q55: =VLOOKUP(A55,[1]EventLinkConfig!$Y:$AM,15,FALSE) -> 6015 | R55: =VLOOKUP(Q55,[1]EventConfig!$A:$P,16,FALSE) -> 60
A56: 3009 | B56: =_xlfn.TEXTJOIN("-",1,M56:N56) -> 道侣婉溪-击败抢走玉佩的小妖 | C56: =A56 -> 3009 | D56: -1 | E56: -1 | F56: 120 | G56: 1 | H56: 100 | I56: 100 | M56: 道侣婉溪 | N56: 击败抢走玉佩的小妖 | O56: 6034 | P56: =VLOOKUP(O56,[1]EventConfig!$A:$P,16,FALSE) -> 120 | Q56: 6034 | R56: =VLOOKUP(Q56,[1]EventConfig!$A:$P,16,FALSE) -> 120
A57: 3010 | B57: =_xlfn.TEXTJOIN("-",1,M57:N57) -> 道侣婉溪-击败溪边水灵 | C57: =A57 -> 3010 | D57: -1 | E57: -1 | F57: 120 | G57: 1 | H57: 100 | I57: 100 | M57: 道侣婉溪 | N57: 击败溪边水灵 | P57: =VLOOKUP(O57,[1]EventConfig!$A:$P,16,FALSE) ->  | Q57: =VLOOKUP(A57,[1]EventLinkConfig!$Y:$AM,15,FALSE) -> 6035 | R57: =VLOOKUP(Q57,[1]EventConfig!$A:$P,16,FALSE) -> 130
A58: 3011 | B58: =_xlfn.TEXTJOIN("-",1,M58:N58) -> 道侣许由-击败守护灵草的小妖 | C58: =A58 -> 3011 | D58: -1 | E58: -1 | F58: 120 | G58: 1 | H58: 100 | I58: 100 | M58: 道侣许由 | N58: 击败守护灵草的小妖 | P58: =VLOOKUP(O58,[1]EventConfig!$A:$P,16,FALSE) ->  | Q58: 6042 | R58: =VLOOKUP(Q58,[1]EventConfig!$A:$P,16,FALSE) -> 130
A59: 3012 | B59: =_xlfn.TEXTJOIN("-",1,M59:N59) -> 道侣许由-击败秘境灵草守卫 | C59: =A59 -> 3012 | D59: -1 | E59: -1 | F59: 120 | G59: 1 | H59: 100 | I59: 100 | M59: 道侣许由 | N59: 击败秘境灵草守卫 | P59: =VLOOKUP(O59,[1]EventConfig!$A:$P,16,FALSE) ->  | Q59: 6044 | R59: =VLOOKUP(Q59,[1]EventConfig!$A:$P,16,FALSE) -> 150
A60: 3013 | B60: =_xlfn.TEXTJOIN("-",1,M60:N60) -> 道侣疯道人-击败果园守卫 | C60: =A60 -> 3013 | D60: -1 | E60: -1 | F60: 120 | G60: 1 | H60: 100 | I60: 100 | M60: 道侣疯道人 | N60: 击败果园守卫 | P60: =VLOOKUP(O60,[1]EventConfig!$A:$P,16,FALSE) ->  | Q60: 6052 | R60: =VLOOKUP(Q60,[1]EventConfig!$A:$P,16,FALSE) -> 160
A61: 3014 | B61: =_xlfn.TEXTJOIN("-",1,M61:N61) -> 道侣疯道人-帮助疯道人驱妖 | C61: =A61 -> 3014 | D61: -1 | E61: -1 | F61: 120 | G61: 1 | H61: 100 | I61: 100 | M61: 道侣疯道人 | N61: 帮助疯道人驱妖 | P61: =VLOOKUP(O61,[1]EventConfig!$A:$P,16,FALSE) ->  | Q61: =VLOOKUP(A61,[1]EventLinkConfig!$Y:$AM,15,FALSE) -> 6053 | R61: =VLOOKUP(Q61,[1]EventConfig!$A:$P,16,FALSE) -> 170
A62: 3015 | B62: =_xlfn.TEXTJOIN("-",1,M62:N62) -> 道侣疯道人-击败疯道人 | C62: =A62 -> 3015 | D62: -1 | E62: -1 | F62: 120 | G62: 1 | H62: 100 | I62: 100 | M62: 道侣疯道人 | N62: 击败疯道人 | P62: =VLOOKUP(O62,[1]EventConfig!$A:$P,16,FALSE) ->  | Q62: =VLOOKUP(A62,[1]EventLinkConfig!$Y:$AM,15,FALSE) -> 6055 | R62: =VLOOKUP(Q62,[1]EventConfig!$A:$P,16,FALSE) -> 190
A64: 10001 | B64: =_xlfn.TEXTJOIN("-",1,M64:N64) -> 引导 -开局第一场战斗 | C64: 10001 | D64: -1 | E64: -1 | F64: 120 | G64: 1 | H64: 100 | I64: 100 | M64: 引导 | N64: 开局第一场战斗 | O64: 10004 | P64: 5
A66: 4001 | B66: =_xlfn.TEXTJOIN("-",1,M66:N66) -> 支线-海岸异象-妖物调查 | C66: =A66 -> 4001 | D66: -1 | E66: -1 | F66: 120 | G66: 1 | H66: 100 | I66: 100 | M66: 支线-海岸异象 | N66: 妖物调查 | P66: 30 | Q66: =VLOOKUP(A66,[1]EventLinkConfig!$Y:$AM,15,FALSE) -> 9112 | R66: =VLOOKUP(Q66,[1]EventConfig!$A:$P,16,FALSE) -> 1
A67: 4002 | B67: 支线-幽魂-幽魂石守护兽 | C67: 4002 | D67: -1 | E67: -1 | F67: 120 | G67: 1 | H67: 100 | I67: 100 | M67: 支线-幽魂 | N67: 幽魂石守护兽 | P67: 60 | Q67: =VLOOKUP(A67,[1]EventLinkConfig!$Y:$AM,15,FALSE) -> 9115 | R67: =VLOOKUP(Q67,[1]EventConfig!$A:$P,16,FALSE) -> 1
A68: 4003 | B68: 支线-馨儿-迷雾妖怪 | C68: 4003 | D68: -1 | E68: -1 | F68: 120 | G68: 1 | H68: 100 | I68: 100 | M68: 支线-馨儿 | N68: 迷雾妖怪 | P68: 90 | Q68: =VLOOKUP(A68,[1]EventLinkConfig!$Y:$AM,15,FALSE) -> 9118 | R68: =VLOOKUP(Q68,[1]EventConfig!$A:$P,16,FALSE) -> 5
A69: 4004 | B69: 支线-馨儿-发现信使 | C69: 4004 | D69: -1 | E69: -1 | F69: 120 | G69: 1 | H69: 100 | I69: 100 | M69: 支线-馨儿 | N69: 发现信使 | P69: 110 | Q69: =VLOOKUP(A69,[1]EventLinkConfig!$Y:$AM,15,FALSE) -> 9119 | R69: =VLOOKUP(Q69,[1]EventConfig!$A:$P,16,FALSE) -> 5
A70: 4005 | B70: 支线-馨儿-发现信使 | C70: 4005 | D70: -1 | E70: -1 | F70: 120 | G70: 1 | H70: 100 | I70: 100 | M70: 支线-馨儿 | N70: 发现信使 | P70: 120 | Q70: =VLOOKUP(A70,[1]EventLinkConfig!$Y:$AM,15,FALSE) -> 9119 | R70: =VLOOKUP(Q70,[1]EventConfig!$A:$P,16,FALSE) -> 5
A71: 4006 | B71: 支线-馨儿-风灵鸟的宝藏 | C71: 4006 | D71: -1 | E71: -1 | F71: 120 | G71: 1 | H71: 100 | I71: 100 | M71: 支线-馨儿 | N71: 风灵鸟的宝藏 | P71: 130 | Q71: =VLOOKUP(A71,[1]EventLinkConfig!$Y:$AM,15,FALSE) -> 9120 | R71: =VLOOKUP(Q71,[1]EventConfig!$A:$P,16,FALSE) -> 11
A72: 4007 | B72: 支线-馨儿-浮岛灵泉的净化 | C72: 4007 | D72: -1 | E72: -1 | F72: 120 | G72: 1 | H72: 100 | I72: 100 | M72: 支线-馨儿 | N72: 浮岛灵泉的净化 | P72: 140 | Q72: =VLOOKUP(A72,[1]EventLinkConfig!$Y:$AM,15,FALSE) -> 9121 | R72: =VLOOKUP(Q72,[1]EventConfig!$A:$P,16,FALSE) -> 11
A73: 4008 | B73: 支线-馨儿-浮岛盗修的阴谋 | C73: 4008 | D73: -1 | E73: -1 | F73: 120 | G73: 1 | H73: 100 | I73: 100 | M73: 支线-馨儿 | N73: 浮岛盗修的阴谋 | P73: 150 | Q73: =VLOOKUP(A73,[1]EventLinkConfig!$Y:$AM,15,FALSE) -> 9122 | R73: =VLOOKUP(Q73,[1]EventConfig!$A:$P,16,FALSE) -> 11
A74: 4009 | B74: 支线-柳轻烟-找到血海宗的人 | C74: 4009 | D74: -1 | E74: -1 | F74: 120 | G74: 1 | H74: 100 | I74: 100 | M74: 支线-柳轻烟 | N74: 找到血海宗的人 | P74: 160 | Q74: =VLOOKUP(A74,[1]EventLinkConfig!$Y:$AM,15,FALSE) -> 9124 | R74: =VLOOKUP(Q74,[1]EventConfig!$A:$P,16,FALSE) -> 21
A75: 4010 | B75: =_xlfn.TEXTJOIN("-",1,M75:N75) -> 支线-柳轻烟-找到血海宗的人2 | C75: =A75 -> 4010 | D75: -1 | E75: -1 | F75: 120 | G75: 1 | H75: 100 | I75: 100 | M75: 支线-柳轻烟 | N75: 找到血海宗的人2 | P75: 170 | Q75: =VLOOKUP(A75,[1]EventLinkConfig!$Y:$AM,15,FALSE) -> 9125 | R75: =VLOOKUP(Q75,[1]EventConfig!$A:$P,16,FALSE) -> 21
A76: 4011 | B76: 支线-馨儿-灵花 | C76: 4011 | D76: -1 | E76: -1 | F76: 120 | G76: 1 | H76: 100 | I76: 100 | M76: 支线-馨儿 | N76: 灵花 | P76: 180 | Q76: =VLOOKUP(A76,[1]EventLinkConfig!$Y:$AM,15,FALSE) -> 9127 | R76: =VLOOKUP(Q76,[1]EventConfig!$A:$P,16,FALSE) -> 31
A77: 4012 | B77: 支线-馨儿-散修劫掠 | C77: 4012 | D77: -1 | E77: -1 | F77: 120 | G77: 1 | H77: 100 | I77: 100 | M77: 支线-馨儿 | N77: 散修劫掠 | P77: 190 | Q77: =VLOOKUP(A77,[1]EventLinkConfig!$Y:$AM,15,FALSE) -> 9128 | R77: =VLOOKUP(Q77,[1]EventConfig!$A:$P,16,FALSE) -> 31
A78: 4013 | B78: 支线-馨儿-散修劫掠2 | C78: 4013 | D78: -1 | E78: -1 | F78: 120 | G78: 1 | H78: 100 | I78: 100 | M78: 支线-馨儿 | N78: 散修劫掠2 | P78: 200 | Q78: =VLOOKUP(A78,[1]EventLinkConfig!$Y:$AM,15,FALSE) -> 9129 | R78: =VLOOKUP(Q78,[1]EventConfig!$A:$P,16,FALSE) -> 31
A79: 4014 | B79: 支线-楚云缪-青狼散人 | C79: 4014 | D79: -1 | E79: -1 | F79: 120 | G79: 1 | H79: 100 | I79: 100 | M79: 支线-楚云缪 | N79: 青狼散人 | P79: 210 | Q79: =VLOOKUP(A79,[1]EventLinkConfig!$Y:$AM,15,FALSE) -> 9132 | R79: =VLOOKUP(Q79,[1]EventConfig!$A:$P,16,FALSE) -> 31
A80: 4015 | B80: 支线-血海宗的掠夺-血海宗的掠夺 | C80: 4015 | D80: -1 | E80: -1 | F80: 120 | G80: 1 | H80: 100 | I80: 100 | M80: 支线-血海宗的掠夺 | N80: 血海宗的掠夺 | P80: 220 | Q80: =VLOOKUP(A80,[1]EventLinkConfig!$Y:$AM,15,FALSE) -> 9133 | R80: =VLOOKUP(Q80,[1]EventConfig!$A:$P,16,FALSE) -> 41
A81: 4016 | B81: 支线-林风-逃离追杀 | C81: 4016 | D81: -1 | E81: -1 | F81: 120 | G81: 1 | H81: 100 | I81: 100 | M81: 支线-林风 | N81: 逃离追杀 | P81: 230 | Q81: =VLOOKUP(A81,[1]EventLinkConfig!$Y:$AM,15,FALSE) -> 9134 | R81: =VLOOKUP(Q81,[1]EventConfig!$A:$P,16,FALSE) -> 41
A82: 4017 | B82: 支线-林风-血海宗弟子 | C82: 4017 | D82: -1 | E82: -1 | F82: 120 | G82: 1 | H82: 100 | I82: 100 | M82: 支线-林风 | N82: 血海宗弟子 | P82: 240 | Q82: =VLOOKUP(A82,[1]EventLinkConfig!$Y:$AM,15,FALSE) -> 9135 | R82: =VLOOKUP(Q82,[1]EventConfig!$A:$P,16,FALSE) -> 41
A83: 4018 | B83: 支线-林风-血海宗弟子 | C83: 4018 | D83: -1 | E83: -1 | F83: 120 | G83: 1 | H83: 100 | I83: 100 | M83: 支线-林风 | N83: 血海宗弟子 | P83: 250 | Q83: =VLOOKUP(A83,[1]EventLinkConfig!$Y:$AM,15,FALSE) -> 9135 | R83: =VLOOKUP(Q83,[1]EventConfig!$A:$P,16,FALSE) -> 41
A84: 4019 | B84: 支线-林风-血海宗弟子 | C84: 4019 | D84: -1 | E84: -1 | F84: 120 | G84: 1 | H84: 100 | I84: 100 | M84: 支线-林风 | N84: 血海宗弟子 | P84: 260 | Q84: =VLOOKUP(A84,[1]EventLinkConfig!$Y:$AM,15,FALSE) -> 9135 | R84: =VLOOKUP(Q84,[1]EventConfig!$A:$P,16,FALSE) -> 41
A85: 4020 | B85: 支线-林风后续-夺晶之战 | C85: 4020 | D85: -1 | E85: -1 | F85: 120 | G85: 1 | H85: 100 | I85: 100 | M85: 支线-林风后续 | N85: 夺晶之战 | P85: 270 | Q85: =VLOOKUP(A85,[1]EventLinkConfig!$Y:$AM,15,FALSE) -> 9139 | R85: =VLOOKUP(Q85,[1]EventConfig!$A:$P,16,FALSE) -> 61
A86: 4021 | B86: 支线-林风后续-夺晶之战 | C86: 4021 | D86: -1 | E86: -1 | F86: 120 | G86: 1 | H86: 100 | I86: 100 | M86: 支线-林风后续 | N86: 夺晶之战 | P86: 280 | Q86: =VLOOKUP(A86,[1]EventLinkConfig!$Y:$AM,15,FALSE) -> 9139 | R86: =VLOOKUP(Q86,[1]EventConfig!$A:$P,16,FALSE) -> 61
A87: 4022 | B87: 支线-林风后续-夺晶之战2-援军 | C87: 4022 | D87: -1 | E87: -1 | F87: 120 | G87: 1 | H87: 100 | I87: 100 | M87: 支线-林风后续 | N87: 夺晶之战2-援军 | P87: 290 | Q87: =VLOOKUP(A87,[1]EventLinkConfig!$Y:$AM,15,FALSE) -> 9140 | R87: =VLOOKUP(Q87,[1]EventConfig!$A:$P,16,FALSE) -> 61
A88: 4023 | B88: 支线-林风-消灭妖邪 | C88: 4023 | D88: -1 | E88: -1 | F88: 120 | G88: 1 | H88: 100 | I88: 100 | M88: 支线-林风 | N88: 消灭妖邪 | P88: 300 | Q88: 9142 | R88: =VLOOKUP(Q88,[1]EventConfig!$A:$P,16,FALSE) -> 81
A89: 4024 | B89: 支线-仙山异样-消灭仙山西边的妖物 | C89: 4024 | D89: -1 | E89: -1 | F89: 120 | G89: 1 | H89: 100 | I89: 100 | M89: 支线-仙山异样 | N89: 消灭仙山西边的妖物 | P89: 300 | Q89: 9144 | R89: =VLOOKUP(Q89,[1]EventConfig!$A:$P,16,FALSE) -> 111
A90: 4025 | B90: =_xlfn.TEXTJOIN("-",1,M90:N90) -> 支线-仙山异样-仙山异样的秘密 | C90: =A90 -> 4025 | D90: -1 | E90: -1 | F90: 120 | G90: 1 | H90: 100 | I90: 100 | M90: 支线-仙山异样 | N90: 仙山异样的秘密 | P90: 300 | Q90: =VLOOKUP(A90,[1]EventLinkConfig!$Y:$AM,15,FALSE) -> 9145 | R90: =VLOOKUP(Q90,[1]EventConfig!$A:$P,16,FALSE) -> 131
A92: 5001 | B92: =_xlfn.TEXTJOIN("-",1,M92:N92) -> 通用-法宝掉落-品质1 | C92: =A92 -> 5001 | D92: -1 | E92: -1 | F92: 120 | G92: 1 | H92: 100 | I92: 100 | M92: 通用-法宝掉落 | N92: 品质1 | P92: -1 | Q92: 101
A93: =A92+1 -> 5002 | B93: =_xlfn.TEXTJOIN("-",1,M93:N93) -> 通用-法宝掉落-品质2 | C93: =A93 -> 5002 | D93: -1 | E93: -1 | F93: 120 | G93: 1 | H93: 100 | I93: 100 | M93: 通用-法宝掉落 | N93: 品质2 | P93: -1 | Q93: 110
A94: =A93+1 -> 5003 | B94: 通用-法宝掉落-品质3 | C94: 5003 | D94: -1 | E94: -1 | F94: 120 | G94: 1 | H94: 100 | I94: 100 | M94: 通用-法宝掉落 | N94: 品质3 | P94: -1 | Q94: 119
A95: =A94+1 -> 5004 | B95: =_xlfn.TEXTJOIN("-",1,M95:N95) -> 通用-法宝掉落-品质4 | C95: =A95 -> 5004 | D95: -1 | E95: -1 | F95: 120 | G95: 1 | H95: 100 | I95: 100 | M95: 通用-法宝掉落 | N95: 品质4 | P95: -1 | Q95: 128
A96: =A95+1 -> 5005 | B96: =_xlfn.TEXTJOIN("-",1,M96:N96) -> 通用-法宝掉落-品质5 | C96: =A96 -> 5005 | D96: -1 | E96: -1 | F96: 120 | G96: 1 | H96: 100 | I96: 100 | M96: 通用-法宝掉落 | N96: 品质5 | P96: -1 | Q96: 137
A97: =A96+1 -> 5006 | B97: 通用-功法掉落-品质1 | C97: 5006 | D97: -1 | E97: -1 | F97: 120 | G97: 1 | H97: 100 | I97: 100 | M97: 通用-功法掉落 | N97: 品质1 | P97: -1 | Q97: 102
A98: 5007 | B98: 通用-功法掉落-品质2 | C98: 5007 | D98: -1 | E98: -1 | F98: 120 | G98: 1 | H98: 100 | I98: 100 | M98: 通用-功法掉落 | N98: 品质2 | P98: -1 | Q98: 111
A99: 5008 | B99: 通用-功法掉落-品质3 | C99: 5008 | D99: -1 | E99: -1 | F99: 120 | G99: 1 | H99: 100 | I99: 100 | M99: 通用-功法掉落 | N99: 品质3 | P99: -1 | Q99: 120
A100: 5009 | B100: 通用-功法掉落-品质4 | C100: 5009 | D100: -1 | E100: -1 | F100: 120 | G100: 1 | H100: 100 | I100: 100 | M100: 通用-功法掉落 | N100: 品质4 | P100: -1 | Q100: 129
A101: 5010 | B101: =_xlfn.TEXTJOIN("-",1,M101:N101) -> 通用-功法掉落-品质5 | C101: =A101 -> 5010 | D101: -1 | E101: -1 | F101: 120 | G101: 1 | H101: 100 | I101: 100 | M101: 通用-功法掉落 | N101: 品质5 | P101: -1 | Q101: 138
A103: 2001 | B103: 命运峰-第1层 | C103: =A103 -> 2001 | D103: =VLOOKUP(A103,[2]TowerInfoConfig!$H:$R,10,FALSE) -> 1001;1402 | E103: =VLOOKUP(A103,[2]TowerInfoConfig!$H:$R,11,FALSE) -> 36300;1 | F103: 120 | G103: 1 | H103: 100 | I103: 100
A104: 2002 | B104: 命运峰-第2层 | C104: =A104 -> 2002 | D104: =VLOOKUP(A104,[2]TowerInfoConfig!$H:$R,10,FALSE) -> 1001;1702 | E104: =VLOOKUP(A104,[2]TowerInfoConfig!$H:$R,11,FALSE) -> 37500;1 | F104: 120 | G104: 1 | H104: 100 | I104: 100
A105: 2003 | B105: 命运峰-第3层 | C105: 2003 | D105: =VLOOKUP(A105,[2]TowerInfoConfig!$H:$R,10,FALSE) -> 1001;21012 | E105: =VLOOKUP(A105,[2]TowerInfoConfig!$H:$R,11,FALSE) -> 38400;1 | F105: 120 | G105: 1 | H105: 100 | I105: 100
A106: 2004 | B106: 命运峰-第4层 | C106: =A106 -> 2004 | D106: =VLOOKUP(A106,[2]TowerInfoConfig!$H:$R,10,FALSE) -> 1001;1402 | E106: =VLOOKUP(A106,[2]TowerInfoConfig!$H:$R,11,FALSE) -> 39600;1 | F106: 120 | G106: 1 | H106: 100 | I106: 100
A107: 2005 | B107: 命运峰-第5层 | C107: 2005 | D107: =VLOOKUP(A107,[2]TowerInfoConfig!$H:$R,10,FALSE) -> 1001;1702 | E107: =VLOOKUP(A107,[2]TowerInfoConfig!$H:$R,11,FALSE) -> 40800;1 | F107: 120 | G107: 1 | H107: 100 | I107: 100
A108: 2006 | B108: 命运峰-第6层 | C108: 2006 | D108: =VLOOKUP(A108,[2]TowerInfoConfig!$H:$R,10,FALSE) -> 1001;21012 | E108: =VLOOKUP(A108,[2]TowerInfoConfig!$H:$R,11,FALSE) -> 42300;1 | F108: 120 | G108: 1 | H108: 100 | I108: 100
A109: 2007 | B109: 命运峰-第7层 | C109: 2007 | D109: =VLOOKUP(A109,[2]TowerInfoConfig!$H:$R,10,FALSE) -> 1001;1402 | E109: =VLOOKUP(A109,[2]TowerInfoConfig!$H:$R,11,FALSE) -> 43500;1 | F109: 120 | G109: 1 | H109: 100 | I109: 100
A110: 2008 | B110: 命运峰-第8层 | C110: 2008 | D110: =VLOOKUP(A110,[2]TowerInfoConfig!$H:$R,10,FALSE) -> 1001;1702 | E110: =VLOOKUP(A110,[2]TowerInfoConfig!$H:$R,11,FALSE) -> 44700;1 | F110: 120 | G110: 1 | H110: 100 | I110: 100
A111: 2009 | B111: 命运峰-第9层 | C111: 2009 | D111: =VLOOKUP(A111,[2]TowerInfoConfig!$H:$R,10,FALSE) -> 1001;21012 | E111: =VLOOKUP(A111,[2]TowerInfoConfig!$H:$R,11,FALSE) -> 46200;1 | F111: 120 | G111: 1 | H111: 100 | I111: 100
A112: 2010 | B112: 命运峰-第10层 | C112: 2010 | D112: =VLOOKUP(A112,[2]TowerInfoConfig!$H:$R,10,FALSE) -> 1001;1402 | E112: =VLOOKUP(A112,[2]TowerInfoConfig!$H:$R,11,FALSE) -> 47700;1 | F112: 120 | G112: 1 | H112: 100 | I112: 100
A113: 2011 | B113: 命运峰-第11层 | C113: 2011 | D113: =VLOOKUP(A113,[2]TowerInfoConfig!$H:$R,10,FALSE) -> 1001;1702 | E113: =VLOOKUP(A113,[2]TowerInfoConfig!$H:$R,11,FALSE) -> 48900;1 | F113: 120 | G113: 1 | H113: 100 | I113: 100
A114: 2012 | B114: 命运峰-第12层 | C114: 2012 | D114: =VLOOKUP(A114,[2]TowerInfoConfig!$H:$R,10,FALSE) -> 1001;21012 | E114: =VLOOKUP(A114,[2]TowerInfoConfig!$H:$R,11,FALSE) -> 50400;1 | F114: 120 | G114: 1 | H114: 100 | I114: 100
A115: 2013 | B115: 命运峰-第13层 | C115: 2013 | D115: =VLOOKUP(A115,[2]TowerInfoConfig!$H:$R,10,FALSE) -> 1001;1402 | E115: =VLOOKUP(A115,[2]TowerInfoConfig!$H:$R,11,FALSE) -> 52200;1 | F115: 120 | G115: 1 | H115: 100 | I115: 100
A116: 2014 | B116: 命运峰-第14层 | C116: 2014 | D116: =VLOOKUP(A116,[2]TowerInfoConfig!$H:$R,10,FALSE) -> 1001;1702 | E116: =VLOOKUP(A116,[2]TowerInfoConfig!$H:$R,11,FALSE) -> 53700;1 | F116: 120 | G116: 1 | H116: 100 | I116: 100
A117: 2015 | B117: 命运峰-第15层 | C117: 2015 | D117: =VLOOKUP(A117,[2]TowerInfoConfig!$H:$R,10,FALSE) -> 1001;21012 | E117: =VLOOKUP(A117,[2]TowerInfoConfig!$H:$R,11,FALSE) -> 55200;1 | F117: 120 | G117: 1 | H117: 100 | I117: 100
A118: 2016 | B118: 命运峰-第16层 | C118: 2016 | D118: =VLOOKUP(A118,[2]TowerInfoConfig!$H:$R,10,FALSE) -> 1001;1402 | E118: =VLOOKUP(A118,[2]TowerInfoConfig!$H:$R,11,FALSE) -> 57000;1 | F118: 120 | G118: 1 | H118: 100 | I118: 100
A119: 2017 | B119: 命运峰-第17层 | C119: 2017 | D119: =VLOOKUP(A119,[2]TowerInfoConfig!$H:$R,10,FALSE) -> 1001;1702 | E119: =VLOOKUP(A119,[2]TowerInfoConfig!$H:$R,11,FALSE) -> 58800;1 | F119: 120 | G119: 1 | H119: 100 | I119: 100
A120: 2018 | B120: 命运峰-第18层 | C120: 2018 | D120: =VLOOKUP(A120,[2]TowerInfoConfig!$H:$R,10,FALSE) -> 1001;21012 | E120: =VLOOKUP(A120,[2]TowerInfoConfig!$H:$R,11,FALSE) -> 60600;1 | F120: 120 | G120: 1 | H120: 100 | I120: 100
A121: 2019 | B121: 命运峰-第19层 | C121: 2019 | D121: =VLOOKUP(A121,[2]TowerInfoConfig!$H:$R,10,FALSE) -> 1001;1402 | E121: =VLOOKUP(A121,[2]TowerInfoConfig!$H:$R,11,FALSE) -> 62400;1 | F121: 120 | G121: 1 | H121: 100 | I121: 100
A122: 2020 | B122: 命运峰-第20层 | C122: 2020 | D122: =VLOOKUP(A122,[2]TowerInfoConfig!$H:$R,10,FALSE) -> 1001;1702 | E122: =VLOOKUP(A122,[2]TowerInfoConfig!$H:$R,11,FALSE) -> 64200;1 | F122: 120 | G122: 1 | H122: 100 | I122: 100
A123: 2021 | B123: 命运峰-第21层 | C123: 2021 | D123: =VLOOKUP(A123,[2]TowerInfoConfig!$H:$R,10,FALSE) -> 1001;21012 | E123: =VLOOKUP(A123,[2]TowerInfoConfig!$H:$R,11,FALSE) -> 66300;1 | F123: 120 | G123: 1 | H123: 100 | I123: 100
A124: 2022 | B124: 命运峰-第22层 | C124: 2022 | D124: =VLOOKUP(A124,[2]TowerInfoConfig!$H:$R,10,FALSE) -> 1001;1402 | E124: =VLOOKUP(A124,[2]TowerInfoConfig!$H:$R,11,FALSE) -> 68100;1 | F124: 120 | G124: 1 | H124: 100 | I124: 100
A125: 2023 | B125: 命运峰-第23层 | C125: 2023 | D125: =VLOOKUP(A125,[2]TowerInfoConfig!$H:$R,10,FALSE) -> 1001;1702 | E125: =VLOOKUP(A125,[2]TowerInfoConfig!$H:$R,11,FALSE) -> 70200;1 | F125: 120 | G125: 1 | H125: 100 | I125: 100
A126: 2024 | B126: 命运峰-第24层 | C126: 2024 | D126: =VLOOKUP(A126,[2]TowerInfoConfig!$H:$R,10,FALSE) -> 1001;21012 | E126: =VLOOKUP(A126,[2]TowerInfoConfig!$H:$R,11,FALSE) -> 72600;1 | F126: 120 | G126: 1 | H126: 100 | I126: 100
A127: 2025 | B127: 命运峰-第25层 | C127: 2025 | D127: =VLOOKUP(A127,[2]TowerInfoConfig!$H:$R,10,FALSE) -> 1001;1402 | E127: =VLOOKUP(A127,[2]TowerInfoConfig!$H:$R,11,FALSE) -> 74700;1 | F127: 120 | G127: 1 | H127: 100 | I127: 100
A128: 2026 | B128: 命运峰-第26层 | C128: 2026 | D128: =VLOOKUP(A128,[2]TowerInfoConfig!$H:$R,10,FALSE) -> 1001;1702 | E128: =VLOOKUP(A128,[2]TowerInfoConfig!$H:$R,11,FALSE) -> 76800;1 | F128: 120 | G128: 1 | H128: 100 | I128: 100
A129: 2027 | B129: 命运峰-第27层 | C129: 2027 | D129: =VLOOKUP(A129,[2]TowerInfoConfig!$H:$R,10,FALSE) -> 1001;21012 | E129: =VLOOKUP(A129,[2]TowerInfoConfig!$H:$R,11,FALSE) -> 79200;1 | F129: 120 | G129: 1 | H129: 100 | I129: 100
A130: 2028 | B130: 命运峰-第28层 | C130: 2028 | D130: =VLOOKUP(A130,[2]TowerInfoConfig!$H:$R,10,FALSE) -> 1001;1402 | E130: =VLOOKUP(A130,[2]TowerInfoConfig!$H:$R,11,FALSE) -> 81600;1 | F130: 120 | G130: 1 | H130: 100 | I130: 100
A131: 2029 | B131: 命运峰-第29层 | C131: 2029 | D131: =VLOOKUP(A131,[2]TowerInfoConfig!$H:$R,10,FALSE) -> 1001;1702 | E131: =VLOOKUP(A131,[2]TowerInfoConfig!$H:$R,11,FALSE) -> 84300;1 | F131: 120 | G131: 1 | H131: 100 | I131: 100
A132: 2030 | B132: 命运峰-第30层 | C132: 2030 | D132: =VLOOKUP(A132,[2]TowerInfoConfig!$H:$R,10,FALSE) -> 1001;21012 | E132: =VLOOKUP(A132,[2]TowerInfoConfig!$H:$R,11,FALSE) -> 86700;1 | F132: 120 | G132: 1 | H132: 100 | I132: 100
A133: 2031 | B133: 命运峰-第31层 | C133: 2031 | D133: =VLOOKUP(A133,[2]TowerInfoConfig!$H:$R,10,FALSE) -> 1001;1403 | E133: =VLOOKUP(A133,[2]TowerInfoConfig!$H:$R,11,FALSE) -> 89400;1 | F133: 120 | G133: 1 | H133: 100 | I133: 100
A134: 2032 | B134: 命运峰-第32层 | C134: 2032 | D134: =VLOOKUP(A134,[2]TowerInfoConfig!$H:$R,10,FALSE) -> 1001;1702 | E134: =VLOOKUP(A134,[2]TowerInfoConfig!$H:$R,11,FALSE) -> 92100;1 | F134: 120 | G134: 1 | H134: 100 | I134: 100
A135: 2033 | B135: 命运峰-第33层 | C135: 2033 | D135: =VLOOKUP(A135,[2]TowerInfoConfig!$H:$R,10,FALSE) -> 1001;21012 | E135: =VLOOKUP(A135,[2]TowerInfoConfig!$H:$R,11,FALSE) -> 95100;1 | F135: 120 | G135: 1 | H135: 100 | I135: 100
A136: 2034 | B136: 命运峰-第34层 | C136: 2034 | D136: =VLOOKUP(A136,[2]TowerInfoConfig!$H:$R,10,FALSE) -> 1001;1403 | E136: =VLOOKUP(A136,[2]TowerInfoConfig!$H:$R,11,FALSE) -> 97800;1 | F136: 120 | G136: 1 | H136: 100 | I136: 100
A137: 2035 | B137: 命运峰-第35层 | C137: 2035 | D137: =VLOOKUP(A137,[2]TowerInfoConfig!$H:$R,10,FALSE) -> 1001;1702 | E137: =VLOOKUP(A137,[2]TowerInfoConfig!$H:$R,11,FALSE) -> 100800;1 | F137: 120 | G137: 1 | H137: 100 | I137: 100
A138: 2036 | B138: 命运峰-第36层 | C138: 2036 | D138: =VLOOKUP(A138,[2]TowerInfoConfig!$H:$R,10,FALSE) -> 1001;21012 | E138: =VLOOKUP(A138,[2]TowerInfoConfig!$H:$R,11,FALSE) -> 103800;1 | F138: 120 | G138: 1 | H138: 100 | I138: 100
A139: 2037 | B139: 命运峰-第37层 | C139: 2037 | D139: =VLOOKUP(A139,[2]TowerInfoConfig!$H:$R,10,FALSE) -> 1001;1403 | E139: =VLOOKUP(A139,[2]TowerInfoConfig!$H:$R,11,FALSE) -> 107100;1 | F139: 120 | G139: 1 | H139: 100 | I139: 100
A140: 2038 | B140: 命运峰-第38层 | C140: 2038 | D140: =VLOOKUP(A140,[2]TowerInfoConfig!$H:$R,10,FALSE) -> 1001;1702 | E140: =VLOOKUP(A140,[2]TowerInfoConfig!$H:$R,11,FALSE) -> 110400;1 | F140: 120 | G140: 1 | H140: 100 | I140: 100
A141: 2039 | B141: 命运峰-第39层 | C141: 2039 | D141: =VLOOKUP(A141,[2]TowerInfoConfig!$H:$R,10,FALSE) -> 1001;21012 | E141: =VLOOKUP(A141,[2]TowerInfoConfig!$H:$R,11,FALSE) -> 113700;1 | F141: 120 | G141: 1 | H141: 100 | I141: 100
A142: 2040 | B142: 命运峰-第40层 | C142: 2040 | D142: =VLOOKUP(A142,[2]TowerInfoConfig!$H:$R,10,FALSE) -> 1001;1403 | E142: =VLOOKUP(A142,[2]TowerInfoConfig!$H:$R,11,FALSE) -> 117300;1 | F142: 120 | G142: 1 | H142: 100 | I142: 100
A143: 2041 | B143: 命运峰-第41层 | C143: 2041 | D143: =VLOOKUP(A143,[2]TowerInfoConfig!$H:$R,10,FALSE) -> 1001;1702 | E143: =VLOOKUP(A143,[2]TowerInfoConfig!$H:$R,11,FALSE) -> 120900;1 | F143: 120 | G143: 1 | H143: 100 | I143: 100
A144: 2042 | B144: 命运峰-第42层 | C144: 2042 | D144: =VLOOKUP(A144,[2]TowerInfoConfig!$H:$R,10,FALSE) -> 1001;21012 | E144: =VLOOKUP(A144,[2]TowerInfoConfig!$H:$R,11,FALSE) -> 124500;1 | F144: 120 | G144: 1 | H144: 100 | I144: 100
A145: 2043 | B145: 命运峰-第43层 | C145: 2043 | D145: =VLOOKUP(A145,[2]TowerInfoConfig!$H:$R,10,FALSE) -> 1001;1403 | E145: =VLOOKUP(A145,[2]TowerInfoConfig!$H:$R,11,FALSE) -> 128400;1 | F145: 120 | G145: 1 | H145: 100 | I145: 100
A146: 2044 | B146: 命运峰-第44层 | C146: 2044 | D146: =VLOOKUP(A146,[2]TowerInfoConfig!$H:$R,10,FALSE) -> 1001;1702 | E146: =VLOOKUP(A146,[2]TowerInfoConfig!$H:$R,11,FALSE) -> 132300;1 | F146: 120 | G146: 1 | H146: 100 | I146: 100
A147: 2045 | B147: 命运峰-第45层 | C147: 2045 | D147: =VLOOKUP(A147,[2]TowerInfoConfig!$H:$R,10,FALSE) -> 1001;21012 | E147: =VLOOKUP(A147,[2]TowerInfoConfig!$H:$R,11,FALSE) -> 136200;1 | F147: 120 | G147: 1 | H147: 100 | I147: 100
A148: 2046 | B148: 命运峰-第46层 | C148: 2046 | D148: =VLOOKUP(A148,[2]TowerInfoConfig!$H:$R,10,FALSE) -> 1001;1403 | E148: =VLOOKUP(A148,[2]TowerInfoConfig!$H:$R,11,FALSE) -> 140400;1 | F148: 120 | G148: 1 | H148: 100 | I148: 100
A149: 2047 | B149: 命运峰-第47层 | C149: 2047 | D149: =VLOOKUP(A149,[2]TowerInfoConfig!$H:$R,10,FALSE) -> 1001;1702 | E149: =VLOOKUP(A149,[2]TowerInfoConfig!$H:$R,11,FALSE) -> 144600;1 | F149: 120 | G149: 1 | H149: 100 | I149: 100
A150: 2048 | B150: 命运峰-第48层 | C150: 2048 | D150: =VLOOKUP(A150,[2]TowerInfoConfig!$H:$R,10,FALSE) -> 1001;21012 | E150: =VLOOKUP(A150,[2]TowerInfoConfig!$H:$R,11,FALSE) -> 149100;1 | F150: 120 | G150: 1 | H150: 100 | I150: 100
A151: 2049 | B151: 命运峰-第49层 | C151: 2049 | D151: =VLOOKUP(A151,[2]TowerInfoConfig!$H:$R,10,FALSE) -> 1001;1403 | E151: =VLOOKUP(A151,[2]TowerInfoConfig!$H:$R,11,FALSE) -> 153600;1 | F151: 120 | G151: 1 | H151: 100 | I151: 100
A152: 2050 | B152: 命运峰-第50层 | C152: 2050 | D152: =VLOOKUP(A152,[2]TowerInfoConfig!$H:$R,10,FALSE) -> 1001;1702 | E152: =VLOOKUP(A152,[2]TowerInfoConfig!$H:$R,11,FALSE) -> 158400;1 | F152: 120 | G152: 1 | H152: 100 | I152: 100
A153: 2051 | B153: 命运峰-第51层 | C153: 2051 | D153: =VLOOKUP(A153,[2]TowerInfoConfig!$H:$R,10,FALSE) -> 1001;21012 | E153: =VLOOKUP(A153,[2]TowerInfoConfig!$H:$R,11,FALSE) -> 163200;1 | F153: 120 | G153: 1 | H153: 100 | I153: 100
A154: 2052 | B154: 命运峰-第52层 | C154: 2052 | D154: =VLOOKUP(A154,[2]TowerInfoConfig!$H:$R,10,FALSE) -> 1001;1403 | E154: =VLOOKUP(A154,[2]TowerInfoConfig!$H:$R,11,FALSE) -> 168000;1 | F154: 120 | G154: 1 | H154: 100 | I154: 100
A155: 2053 | B155: 命运峰-第53层 | C155: 2053 | D155: =VLOOKUP(A155,[2]TowerInfoConfig!$H:$R,10,FALSE) -> 1001;1702 | E155: =VLOOKUP(A155,[2]TowerInfoConfig!$H:$R,11,FALSE) -> 173100;1 | F155: 120 | G155: 1 | H155: 100 | I155: 100
A156: 2054 | B156: 命运峰-第54层 | C156: 2054 | D156: =VLOOKUP(A156,[2]TowerInfoConfig!$H:$R,10,FALSE) -> 1001;21012 | E156: =VLOOKUP(A156,[2]TowerInfoConfig!$H:$R,11,FALSE) -> 178500;1 | F156: 120 | G156: 1 | H156: 100 | I156: 100
A157: 2055 | B157: 命运峰-第55层 | C157: 2055 | D157: =VLOOKUP(A157,[2]TowerInfoConfig!$H:$R,10,FALSE) -> 1001;1403 | E157: =VLOOKUP(A157,[2]TowerInfoConfig!$H:$R,11,FALSE) -> 183900;1 | F157: 120 | G157: 1 | H157: 100 | I157: 100
A158: 2056 | B158: 命运峰-第56层 | C158: 2056 | D158: =VLOOKUP(A158,[2]TowerInfoConfig!$H:$R,10,FALSE) -> 1001;1702 | E158: =VLOOKUP(A158,[2]TowerInfoConfig!$H:$R,11,FALSE) -> 189600;1 | F158: 120 | G158: 1 | H158: 100 | I158: 100
A159: 2057 | B159: 命运峰-第57层 | C159: 2057 | D159: =VLOOKUP(A159,[2]TowerInfoConfig!$H:$R,10,FALSE) -> 1001;21012 | E159: =VLOOKUP(A159,[2]TowerInfoConfig!$H:$R,11,FALSE) -> 195300;1 | F159: 120 | G159: 1 | H159: 100 | I159: 100
A160: 2058 | B160: 命运峰-第58层 | C160: 2058 | D160: =VLOOKUP(A160,[2]TowerInfoConfig!$H:$R,10,FALSE) -> 1001;1403 | E160: =VLOOKUP(A160,[2]TowerInfoConfig!$H:$R,11,FALSE) -> 201300;1 | F160: 120 | G160: 1 | H160: 100 | I160: 100
A161: 2059 | B161: 命运峰-第59层 | C161: 2059 | D161: =VLOOKUP(A161,[2]TowerInfoConfig!$H:$R,10,FALSE) -> 1001;1702 | E161: =VLOOKUP(A161,[2]TowerInfoConfig!$H:$R,11,FALSE) -> 207600;1 | F161: 120 | G161: 1 | H161: 100 | I161: 100
A162: 2060 | B162: 命运峰-第60层 | C162: 2060 | D162: =VLOOKUP(A162,[2]TowerInfoConfig!$H:$R,10,FALSE) -> 1001;21012 | E162: =VLOOKUP(A162,[2]TowerInfoConfig!$H:$R,11,FALSE) -> 213900;1 | F162: 120 | G162: 1 | H162: 100 | I162: 100
A163: 2061 | B163: 命运峰-第61层 | C163: 2061 | D163: =VLOOKUP(A163,[2]TowerInfoConfig!$H:$R,10,FALSE) -> 1001;1404 | E163: =VLOOKUP(A163,[2]TowerInfoConfig!$H:$R,11,FALSE) -> 220200;1 | F163: 120 | G163: 1 | H163: 100 | I163: 100
A164: 2062 | B164: 命运峰-第62层 | C164: 2062 | D164: =VLOOKUP(A164,[2]TowerInfoConfig!$H:$R,10,FALSE) -> 1001;1702 | E164: =VLOOKUP(A164,[2]TowerInfoConfig!$H:$R,11,FALSE) -> 227100;1 | F164: 120 | G164: 1 | H164: 100 | I164: 100
A165: 2063 | B165: 命运峰-第63层 | C165: 2063 | D165: =VLOOKUP(A165,[2]TowerInfoConfig!$H:$R,10,FALSE) -> 1001;21012 | E165: =VLOOKUP(A165,[2]TowerInfoConfig!$H:$R,11,FALSE) -> 234000;1 | F165: 120 | G165: 1 | H165: 100 | I165: 100
A166: 2064 | B166: 命运峰-第64层 | C166: 2064 | D166: =VLOOKUP(A166,[2]TowerInfoConfig!$H:$R,10,FALSE) -> 1001;1404 | E166: =VLOOKUP(A166,[2]TowerInfoConfig!$H:$R,11,FALSE) -> 241200;1 | F166: 120 | G166: 1 | H166: 100 | I166: 100
A167: 2065 | B167: 命运峰-第65层 | C167: 2065 | D167: =VLOOKUP(A167,[2]TowerInfoConfig!$H:$R,10,FALSE) -> 1001;1702 | E167: =VLOOKUP(A167,[2]TowerInfoConfig!$H:$R,11,FALSE) -> 248400;1 | F167: 120 | G167: 1 | H167: 100 | I167: 100
A168: 2066 | B168: 命运峰-第66层 | C168: 2066 | D168: =VLOOKUP(A168,[2]TowerInfoConfig!$H:$R,10,FALSE) -> 1001;21012 | E168: =VLOOKUP(A168,[2]TowerInfoConfig!$H:$R,11,FALSE) -> 255900;1 | F168: 120 | G168: 1 | H168: 100 | I168: 100
A169: 2067 | B169: 命运峰-第67层 | C169: 2067 | D169: =VLOOKUP(A169,[2]TowerInfoConfig!$H:$R,10,FALSE) -> 1001;1404 | E169: =VLOOKUP(A169,[2]TowerInfoConfig!$H:$R,11,FALSE) -> 263700;1 | F169: 120 | G169: 1 | H169: 100 | I169: 100
A170: 2068 | B170: 命运峰-第68层 | C170: =A170 -> 2068 | D170: =VLOOKUP(A170,[2]TowerInfoConfig!$H:$R,10,FALSE) -> 1001;1702 | E170: =VLOOKUP(A170,[2]TowerInfoConfig!$H:$R,11,FALSE) -> 271800;1 | F170: 120 | G170: 1 | H170: 100 | I170: 100
A171: 2069 | B171: 命运峰-第69层 | C171: 2069 | D171: =VLOOKUP(A171,[2]TowerInfoConfig!$H:$R,10,FALSE) -> 1001;21012 | E171: =VLOOKUP(A171,[2]TowerInfoConfig!$H:$R,11,FALSE) -> 280200;1 | F171: 120 | G171: 1 | H171: 100 | I171: 100
A172: 2070 | B172: 命运峰-第70层 | C172: 2070 | D172: =VLOOKUP(A172,[2]TowerInfoConfig!$H:$R,10,FALSE) -> 1001;1404 | E172: =VLOOKUP(A172,[2]TowerInfoConfig!$H:$R,11,FALSE) -> 288600;1 | F172: 120 | G172: 1 | H172: 100 | I172: 100
A173: 2071 | B173: 命运峰-第71层 | C173: 2071 | D173: =VLOOKUP(A173,[2]TowerInfoConfig!$H:$R,10,FALSE) -> 1001;1702 | E173: =VLOOKUP(A173,[2]TowerInfoConfig!$H:$R,11,FALSE) -> 297600;1 | F173: 120 | G173: 1 | H173: 100 | I173: 100
A174: 2072 | B174: 命运峰-第72层 | C174: 2072 | D174: =VLOOKUP(A174,[2]TowerInfoConfig!$H:$R,10,FALSE) -> 1001;21012 | E174: =VLOOKUP(A174,[2]TowerInfoConfig!$H:$R,11,FALSE) -> 306600;1 | F174: 120 | G174: 1 | H174: 100 | I174: 100
A175: 2073 | B175: 命运峰-第73层 | C175: 2073 | D175: =VLOOKUP(A175,[2]TowerInfoConfig!$H:$R,10,FALSE) -> 1001;1404 | E175: =VLOOKUP(A175,[2]TowerInfoConfig!$H:$R,11,FALSE) -> 315900;1 | F175: 120 | G175: 1 | H175: 100 | I175: 100
A176: 2074 | B176: 命运峰-第74层 | C176: 2074 | D176: =VLOOKUP(A176,[2]TowerInfoConfig!$H:$R,10,FALSE) -> 1001;1702 | E176: =VLOOKUP(A176,[2]TowerInfoConfig!$H:$R,11,FALSE) -> 325500;1 | F176: 120 | G176: 1 | H176: 100 | I176: 100
A177: 2075 | B177: 命运峰-第75层 | C177: 2075 | D177: =VLOOKUP(A177,[2]TowerInfoConfig!$H:$R,10,FALSE) -> 1001;21012 | E177: =VLOOKUP(A177,[2]TowerInfoConfig!$H:$R,11,FALSE) -> 335700;1 | F177: 120 | G177: 1 | H177: 100 | I177: 100
A178: 2076 | B178: 命运峰-第76层 | C178: 2076 | D178: =VLOOKUP(A178,[2]TowerInfoConfig!$H:$R,10,FALSE) -> 1001;1404 | E178: =VLOOKUP(A178,[2]TowerInfoConfig!$H:$R,11,FALSE) -> 345900;1 | F178: 120 | G178: 1 | H178: 100 | I178: 100
A179: 2077 | B179: 命运峰-第77层 | C179: 2077 | D179: =VLOOKUP(A179,[2]TowerInfoConfig!$H:$R,10,FALSE) -> 1001;1702 | E179: =VLOOKUP(A179,[2]TowerInfoConfig!$H:$R,11,FALSE) -> 356400;1 | F179: 120 | G179: 1 | H179: 100 | I179: 100
A180: 2078 | B180: 命运峰-第78层 | C180: 2078 | D180: =VLOOKUP(A180,[2]TowerInfoConfig!$H:$R,10,FALSE) -> 1001;21012 | E180: =VLOOKUP(A180,[2]TowerInfoConfig!$H:$R,11,FALSE) -> 367200;1 | F180: 120 | G180: 1 | H180: 100 | I180: 100
A181: 2079 | B181: 命运峰-第79层 | C181: 2079 | D181: =VLOOKUP(A181,[2]TowerInfoConfig!$H:$R,10,FALSE) -> 1001;1404 | E181: =VLOOKUP(A181,[2]TowerInfoConfig!$H:$R,11,FALSE) -> 378300;1 | F181: 120 | G181: 1 | H181: 100 | I181: 100
A182: 2080 | B182: 命运峰-第80层 | C182: 2080 | D182: =VLOOKUP(A182,[2]TowerInfoConfig!$H:$R,10,FALSE) -> 1001;1702 | E182: =VLOOKUP(A182,[2]TowerInfoConfig!$H:$R,11,FALSE) -> 390000;1 | F182: 120 | G182: 1 | H182: 100 | I182: 100
A183: 2081 | B183: 命运峰-第81层 | C183: 2081 | D183: =VLOOKUP(A183,[2]TowerInfoConfig!$H:$R,10,FALSE) -> 1001;21012 | E183: =VLOOKUP(A183,[2]TowerInfoConfig!$H:$R,11,FALSE) -> 402000;1 | F183: 120 | G183: 1 | H183: 100 | I183: 100
A184: 2082 | B184: 命运峰-第82层 | C184: 2082 | D184: =VLOOKUP(A184,[2]TowerInfoConfig!$H:$R,10,FALSE) -> 1001;1404 | E184: =VLOOKUP(A184,[2]TowerInfoConfig!$H:$R,11,FALSE) -> 414000;1 | F184: 120 | G184: 1 | H184: 100 | I184: 100
A185: 2083 | B185: 命运峰-第83层 | C185: 2083 | D185: =VLOOKUP(A185,[2]TowerInfoConfig!$H:$R,10,FALSE) -> 1001;1702 | E185: =VLOOKUP(A185,[2]TowerInfoConfig!$H:$R,11,FALSE) -> 426900;1 | F185: 120 | G185: 1 | H185: 100 | I185: 100
A186: 2084 | B186: 命运峰-第84层 | C186: 2084 | D186: =VLOOKUP(A186,[2]TowerInfoConfig!$H:$R,10,FALSE) -> 1001;21012 | E186: =VLOOKUP(A186,[2]TowerInfoConfig!$H:$R,11,FALSE) -> 435300;1 | F186: 120 | G186: 1 | H186: 100 | I186: 100
A187: 2085 | B187: 命运峰-第85层 | C187: 2085 | D187: =VLOOKUP(A187,[2]TowerInfoConfig!$H:$R,10,FALSE) -> 1001;1404 | E187: =VLOOKUP(A187,[2]TowerInfoConfig!$H:$R,11,FALSE) -> 444300;1 | F187: 120 | G187: 1 | H187: 100 | I187: 100
A188: 2086 | B188: 命运峰-第86层 | C188: =A188 -> 2086 | D188: =VLOOKUP(A188,[2]TowerInfoConfig!$H:$R,10,FALSE) -> 1001;1702 | E188: =VLOOKUP(A188,[2]TowerInfoConfig!$H:$R,11,FALSE) -> 453300;1 | F188: 120 | G188: 1 | H188: 100 | I188: 100
A189: 2087 | B189: 命运峰-第87层 | C189: 2087 | D189: =VLOOKUP(A189,[2]TowerInfoConfig!$H:$R,10,FALSE) -> 1001;21012 | E189: =VLOOKUP(A189,[2]TowerInfoConfig!$H:$R,11,FALSE) -> 462300;1 | F189: 120 | G189: 1 | H189: 100 | I189: 100
A190: 2088 | B190: 命运峰-第88层 | C190: 2088 | D190: =VLOOKUP(A190,[2]TowerInfoConfig!$H:$R,10,FALSE) -> 1001;1404 | E190: =VLOOKUP(A190,[2]TowerInfoConfig!$H:$R,11,FALSE) -> 471900;1 | F190: 120 | G190: 1 | H190: 100 | I190: 100
A191: 2089 | B191: 命运峰-第89层 | C191: 2089 | D191: =VLOOKUP(A191,[2]TowerInfoConfig!$H:$R,10,FALSE) -> 1001;1702 | E191: =VLOOKUP(A191,[2]TowerInfoConfig!$H:$R,11,FALSE) -> 481200;1 | F191: 120 | G191: 1 | H191: 100 | I191: 100
A192: 2090 | B192: 命运峰-第90层 | C192: 2090 | D192: =VLOOKUP(A192,[2]TowerInfoConfig!$H:$R,10,FALSE) -> 1001;21012 | E192: =VLOOKUP(A192,[2]TowerInfoConfig!$H:$R,11,FALSE) -> 491100;1 | F192: 120 | G192: 1 | H192: 100 | I192: 100
A193: 2091 | B193: 命运峰-第91层 | C193: 2091 | D193: =VLOOKUP(A193,[2]TowerInfoConfig!$H:$R,10,FALSE) -> 1001;1404 | E193: =VLOOKUP(A193,[2]TowerInfoConfig!$H:$R,11,FALSE) -> 501000;1 | F193: 120 | G193: 1 | H193: 100 | I193: 100
A194: 2092 | B194: 命运峰-第92层 | C194: 2092 | D194: =VLOOKUP(A194,[2]TowerInfoConfig!$H:$R,10,FALSE) -> 1001;1702 | E194: =VLOOKUP(A194,[2]TowerInfoConfig!$H:$R,11,FALSE) -> 511200;1 | F194: 120 | G194: 1 | H194: 100 | I194: 100
A195: 2093 | B195: 命运峰-第93层 | C195: 2093 | D195: =VLOOKUP(A195,[2]TowerInfoConfig!$H:$R,10,FALSE) -> 1001;21012 | E195: =VLOOKUP(A195,[2]TowerInfoConfig!$H:$R,11,FALSE) -> 521400;1 | F195: 120 | G195: 1 | H195: 100 | I195: 100
A196: 2094 | B196: 命运峰-第94层 | C196: 2094 | D196: =VLOOKUP(A196,[2]TowerInfoConfig!$H:$R,10,FALSE) -> 1001;1404 | E196: =VLOOKUP(A196,[2]TowerInfoConfig!$H:$R,11,FALSE) -> 531900;1 | F196: 120 | G196: 1 | H196: 100 | I196: 100
A197: 2095 | B197: 命运峰-第95层 | C197: 2095 | D197: =VLOOKUP(A197,[2]TowerInfoConfig!$H:$R,10,FALSE) -> 1001;1702 | E197: =VLOOKUP(A197,[2]TowerInfoConfig!$H:$R,11,FALSE) -> 542700;1 | F197: 120 | G197: 1 | H197: 100 | I197: 100
A198: 2096 | B198: 命运峰-第96层 | C198: 2096 | D198: =VLOOKUP(A198,[2]TowerInfoConfig!$H:$R,10,FALSE) -> 1001;21012 | E198: =VLOOKUP(A198,[2]TowerInfoConfig!$H:$R,11,FALSE) -> 553800;1 | F198: 120 | G198: 1 | H198: 100 | I198: 100
A199: 2097 | B199: 命运峰-第97层 | C199: 2097 | D199: =VLOOKUP(A199,[2]TowerInfoConfig!$H:$R,10,FALSE) -> 1001;1404 | E199: =VLOOKUP(A199,[2]TowerInfoConfig!$H:$R,11,FALSE) -> 564900;1 | F199: 120 | G199: 1 | H199: 100 | I199: 100
A200: 2098 | B200: 命运峰-第98层 | C200: 2098 | D200: =VLOOKUP(A200,[2]TowerInfoConfig!$H:$R,10,FALSE) -> 1001;1702 | E200: =VLOOKUP(A200,[2]TowerInfoConfig!$H:$R,11,FALSE) -> 576300;1 | F200: 120 | G200: 1 | H200: 100 | I200: 100
A201: 2099 | B201: 命运峰-第99层 | C201: 2099 | D201: =VLOOKUP(A201,[2]TowerInfoConfig!$H:$R,10,FALSE) -> 1001;21012 | E201: =VLOOKUP(A201,[2]TowerInfoConfig!$H:$R,11,FALSE) -> 588000;1 | F201: 120 | G201: 1 | H201: 100 | I201: 100
A202: 2100 | B202: 命运峰-第100层 | C202: 2100 | D202: =VLOOKUP(A202,[2]TowerInfoConfig!$H:$R,10,FALSE) -> 1001;1404 | E202: =VLOOKUP(A202,[2]TowerInfoConfig!$H:$R,11,FALSE) -> 600000;1 | F202: 120 | G202: 1 | H202: 100 | I202: 100

Sheet GroupConfig
A1: ID | C1: GroupMonsterLevel | D1: GroupMonster | E1: hpQiangDu | F1: attQiangDu | G1: duipingQiangDu | H1: levelAdd
A2: int | C2: int[] | D2: int[] | E2: int[] | F2: int[] | G2: int[] | H2: int[]
A4: 组ID | B4: 常用阵容ID | C4: 具体怪物等级 -1代表跟随玩家等级 -1后面可填动态修正等级 | D4: 每组具体怪 | E4: 每个怪的比例强度 一个都不填就是默认强度 | F4: 攻击强度 | G4: 对拼强度 | H4: 等级额外添加值 | I4: 怪物1 | J4: 怪物2 | K4: 怪物3 | L4: 怪物1生存强度 | M4: 怪物2生存强度 | N4: 怪物3生存强度 | O4: 怪物1攻击强度 | P4: 怪物2攻击强度 | Q4: 怪物3攻击强度 | R4: 怪物1对拼强度 | S4: 怪物2对拼强度 | T4: 怪物3对拼强度 | U4: 怪物1等级降低 | V4: 怪物2等级降低 | W4: 怪物3等级降低
A5: 100001 | B5: 100001 | C5: -1 | D5: =_xlfn.TEXTJOIN(";",1,I5:K5) -> 1002 | E5: =_xlfn.TEXTJOIN(";",1,L5:N5) ->  | F5: =_xlfn.TEXTJOIN(";",1,O5:Q5) ->  | G5: =_xlfn.TEXTJOIN(";",1,R5:T5) ->  | H5: =_xlfn.TEXTJOIN(";",1,U5:W5) ->  | I5: 1002
A6: 100002 | B6: 100002 | C6: -1 | D6: =_xlfn.TEXTJOIN(";",1,I6:K6) -> 1006 | E6: =_xlfn.TEXTJOIN(";",1,L6:N6) ->  | F6: =_xlfn.TEXTJOIN(";",1,O6:Q6) ->  | G6: =_xlfn.TEXTJOIN(";",1,R6:T6) ->  | H6: =_xlfn.TEXTJOIN(";",1,U6:W6) ->  | I6: 1006
A7: 100003 | B7: 100003 | C7: -1 | D7: 1003 | I7: 1003
A8: 100004 | B8: 100004 | C8: -1 | D8: 9005 | I8: 9005 | AA8: 等模型来了再配置
A9: 100005 | B9: 100005 | C9: -1 | D9: 1005 | I9: 1005 | AA9: 9002
A10: 100006 | B10: 100006 | C10: -1 | D10: 1002 | I10: 1002 | AA10: 9001
A11: 100007 | B11: 100007 | C11: -1 | D11: 1003;1002 | E11: 90;30 | F11: 77;26 | G11: 75;25 | H11: 0;0 | I11: 1003 | J11: 1002 | L11: 90 | M11: 30 | O11: 77 | P11: 26 | R11: 75 | S11: 25 | U11: 0 | V11: 0 | AA11: 9003
A12: 100008 | B12: 100008 | C12: -1 | D12: 1004;1006 | E12: 90;30 | F12: 77;26 | G12: 75;25 | H12: 0;0 | I12: 1004 | J12: 1006 | L12: 90 | M12: 30 | O12: 77 | P12: 26 | R12: 75 | S12: 25 | U12: 0 | V12: 0 | AA12: 1001 | AB12: 1002
A13: 100009 | B13: 100009 | C13: -1 | D13: 1005 | I13: 1005 | AA13: 5006
AA14: 5007
A15: 1002 | B15: =LevelbattleConfig!B11 -> 主线-击败结界兽 | C15: =VLOOKUP(A15,LevelbattleConfig!A:R,18,FALSE) -> 6 | D15: 7001 | I15: 7001 | AA15: 9006
A16: =A15+1 -> 1003 | B16: =LevelbattleConfig!B12 -> 主线-击败痴道人 | C16: =VLOOKUP(A16,LevelbattleConfig!A:R,18,FALSE) -> 16 | D16: 9001 | I16: 9001 | AA16: 9004
A17: =A16+1 -> 1004 | B17: =LevelbattleConfig!B13 -> 主线-妖兽横行 | C17: =VLOOKUP(A17,LevelbattleConfig!A:R,18,FALSE) -> 25 | D17: 1008 | I17: 1008
A18: 1005 | B18: =LevelbattleConfig!B14 -> 主线-击败后山小妖 | C18: =VLOOKUP(A18,LevelbattleConfig!A:R,18,FALSE) -> 46 | D18: 1008 | I18: 1008
A19: 1006 | B19: =LevelbattleConfig!B15 -> 主线-击败夜袭的妖兽 | C19: =VLOOKUP(A19,LevelbattleConfig!A:R,18,FALSE) -> 51 | D19: 5006 | I19: 5006
A20: 1007 | B20: =LevelbattleConfig!B16 -> 主线-击败峰顶的妖王 | C20: =VLOOKUP(A20,LevelbattleConfig!A:R,18,FALSE) -> 56 | D20: 5007 | I20: 5007
A21: 1008 | B21: =LevelbattleConfig!B17 -> 主线-击败仙山的阵眼妖兽 | C21: =VLOOKUP(A21,LevelbattleConfig!A:R,18,FALSE) -> 86 | D21: 9001 | I21: 9001
A22: 1009 | B22: =LevelbattleConfig!B18 -> 主线-击杀灵兽获得天肥 | C22: =VLOOKUP(A22,LevelbattleConfig!A:R,18,FALSE) -> 101 | D22: 9002 | I22: 9002
A23: 1010 | B23: =LevelbattleConfig!B19 -> 主线-击败小麻雀的幻影 | C23: =VLOOKUP(A23,LevelbattleConfig!A:R,18,FALSE) -> 121 | D23: 9002 | I23: 9002
A24: =A23+1 -> 1011 | B24: =LevelbattleConfig!B20 -> 主线-击败痴道人的幻影 | C24: =VLOOKUP(A24,LevelbattleConfig!A:R,18,FALSE) -> 121 | D24: 9001 | I24: 9001
A25: 1012 | B25: =LevelbattleConfig!B21 -> 主线-樗木之灵的幻影 | C25: =VLOOKUP(A25,LevelbattleConfig!A:R,18,FALSE) -> 121 | D25: 9004 | I25: 9004
A26: 1013 | B26: =LevelbattleConfig!B22 -> 主线-击败心魔 | C26: =VLOOKUP(A26,LevelbattleConfig!A:R,18,FALSE) -> 141 | D26: 5007 | I26: 5007
A27: 1014 | B27: =LevelbattleConfig!B23 -> 主线-击败北海妖兽2 | C27: =VLOOKUP(A27,LevelbattleConfig!A:R,18,FALSE)&";"&VLOOKUP(A27,LevelbattleConfig!A:R,18,FALSE) -> 151;151 | D27: 1008;1006 | E27: 80;40 | F27: 72;36 | G27: 67;33 | H27: 0;0 | I27: 1008 | J27: 1006 | L27: 80 | M27: 40 | O27: 72 | P27: 36 | R27: 67 | S27: 33 | U27: 0 | V27: 0
A28: 1015 | B28: =LevelbattleConfig!B24 -> 主线-击败北海妖兽1 | C28: =VLOOKUP(A28,LevelbattleConfig!A:R,18,FALSE)&";"&VLOOKUP(A28,LevelbattleConfig!A:R,18,FALSE) -> 25;25 | D28: =_xlfn.TEXTJOIN(";",1,I28:K28) -> 1008;1006 | E28: =_xlfn.TEXTJOIN(";",1,L28:N28) -> 80;40 | F28: =_xlfn.TEXTJOIN(";",1,O28:Q28) -> 72;36 | G28: =_xlfn.TEXTJOIN(";",1,R28:T28) -> 67;33 | H28: =_xlfn.TEXTJOIN(";",1,U28:W28) -> 0;0 | I28: 1008 | J28: 1006 | L28: 80 | M28: 40 | O28: 72 | P28: 36 | R28: 67 | S28: 33 | U28: 0 | V28: 0
A29: 1016 | B29: =LevelbattleConfig!B25 -> 主线-与樗木之灵切磋 | C29: =VLOOKUP(A29,LevelbattleConfig!A:R,18,FALSE) -> 69 | D29: =_xlfn.TEXTJOIN(";",1,I29:K29) -> 9004 | E29: =_xlfn.TEXTJOIN(";",1,L29:N29) ->  | F29: =_xlfn.TEXTJOIN(";",1,O29:Q29) ->  | G29: =_xlfn.TEXTJOIN(";",1,R29:T29) ->  | H29: =_xlfn.TEXTJOIN(";",1,U29:W29) ->  | I29: 9004
A52: 3001 | B52: =LevelbattleConfig!B48 -> 道侣雀灵儿-击败风妖 | C52: =VLOOKUP(A52,LevelbattleConfig!A:R,18,FALSE) -> 15 | D52: =_xlfn.TEXTJOIN(";",1,I52:K52) -> 1005 | E52: =_xlfn.TEXTJOIN(";",1,L52:N52) ->  | F52: =_xlfn.TEXTJOIN(";",1,O52:Q52) ->  | G52: =_xlfn.TEXTJOIN(";",1,R52:T52) ->  | H52: =_xlfn.TEXTJOIN(";",1,U52:W52) ->  | I52: 1005
A53: 3002 | B53: =LevelbattleConfig!B49 -> 道侣雀灵儿-击败大风妖兽 | C53: =VLOOKUP(A53,LevelbattleConfig!A:R,18,FALSE) -> 25 | D53: =_xlfn.TEXTJOIN(";",1,I53:K53) -> 9006 | E53: =_xlfn.TEXTJOIN(";",1,L53:N53) ->  | F53: =_xlfn.TEXTJOIN(";",1,O53:Q53) ->  | G53: =_xlfn.TEXTJOIN(";",1,R53:T53) ->  | H53: =_xlfn.TEXTJOIN(";",1,U53:W53) ->  | I53: 9006
A54: =A53+1 -> 3003 | B54: =LevelbattleConfig!B50 -> 道侣云枝-击败风妖 | C54: =VLOOKUP(A54,LevelbattleConfig!A:R,18,FALSE) -> 20 | D54: =_xlfn.TEXTJOIN(";",1,I54:K54) -> 1005 | E54: =_xlfn.TEXTJOIN(";",1,L54:N54) ->  | F54: =_xlfn.TEXTJOIN(";",1,O54:Q54) ->  | G54: =_xlfn.TEXTJOIN(";",1,R54:T54) ->  | H54: =_xlfn.TEXTJOIN(";",1,U54:W54) ->  | I54: 1005
A55: 3004 | B55: =LevelbattleConfig!B51 -> 道侣云枝-击败风妖2 | C55: =VLOOKUP(A55,LevelbattleConfig!A:R,18,FALSE) -> 30 | D55: =_xlfn.TEXTJOIN(";",1,I55:K55) -> 1005 | E55: =_xlfn.TEXTJOIN(";",1,L55:N55) ->  | F55: =_xlfn.TEXTJOIN(";",1,O55:Q55) ->  | G55: =_xlfn.TEXTJOIN(";",1,R55:T55) ->  | H55: =_xlfn.TEXTJOIN(";",1,U55:W55) ->  | I55: 1005
A56: 3005 | B56: =LevelbattleConfig!B52 -> 道侣云枝-击败风妖3 | C56: =VLOOKUP(A56,LevelbattleConfig!A:R,18,FALSE) -> 30 | D56: 5003 | I56: 5003
A57: 3006 | B57: =LevelbattleConfig!B53 -> 道侣云枝-击败风妖4 | C57: =VLOOKUP(A57,LevelbattleConfig!A:R,18,FALSE) -> 40 | D57: =_xlfn.TEXTJOIN(";",1,I57:K57) -> 5003 | E57: =_xlfn.TEXTJOIN(";",1,L57:N57) ->  | F57: =_xlfn.TEXTJOIN(";",1,O57:Q57) ->  | G57: =_xlfn.TEXTJOIN(";",1,R57:T57) ->  | H57: =_xlfn.TEXTJOIN(";",1,U57:W57) ->  | I57: 5003
A58: 3007 | B58: =LevelbattleConfig!B54 -> 道侣云枝-击败风妖4 | C58: =VLOOKUP(A58,LevelbattleConfig!A:R,18,FALSE) -> 60 | D58: =_xlfn.TEXTJOIN(";",1,I58:K58) -> 5003 | E58: =_xlfn.TEXTJOIN(";",1,L58:N58) ->  | F58: =_xlfn.TEXTJOIN(";",1,O58:Q58) ->  | G58: =_xlfn.TEXTJOIN(";",1,R58:T58) ->  | H58: =_xlfn.TEXTJOIN(";",1,U58:W58) ->  | I58: 5003
A59: 3008 | B59: =LevelbattleConfig!B55 -> 道侣云枝-击败风妖5 | C59: =VLOOKUP(A59,LevelbattleConfig!A:R,18,FALSE) -> 60 | D59: =_xlfn.TEXTJOIN(";",1,I59:K59) -> 9002 | E59: =_xlfn.TEXTJOIN(";",1,L59:N59) ->  | F59: =_xlfn.TEXTJOIN(";",1,O59:Q59) ->  | G59: =_xlfn.TEXTJOIN(";",1,R59:T59) ->  | H59: =_xlfn.TEXTJOIN(";",1,U59:W59) ->  | I59: 9002
A60: 3009 | B60: =LevelbattleConfig!B56 -> 道侣婉溪-击败抢走玉佩的小妖 | C60: =VLOOKUP(A60,LevelbattleConfig!A:R,18,FALSE) -> 120 | D60: =_xlfn.TEXTJOIN(";",1,I60:K60) -> 5003 | E60: =_xlfn.TEXTJOIN(";",1,L60:N60) ->  | F60: =_xlfn.TEXTJOIN(";",1,O60:Q60) ->  | G60: =_xlfn.TEXTJOIN(";",1,R60:T60) ->  | H60: =_xlfn.TEXTJOIN(";",1,U60:W60) ->  | I60: 5003
A61: 3010 | B61: =LevelbattleConfig!B57 -> 道侣婉溪-击败溪边水灵 | C61: =VLOOKUP(A61,LevelbattleConfig!A:R,18,FALSE) -> 130 | D61: =_xlfn.TEXTJOIN(";",1,I61:K61) -> 5002 | E61: =_xlfn.TEXTJOIN(";",1,L61:N61) ->  | F61: =_xlfn.TEXTJOIN(";",1,O61:Q61) ->  | G61: =_xlfn.TEXTJOIN(";",1,R61:T61) ->  | H61: =_xlfn.TEXTJOIN(";",1,U61:W61) ->  | I61: 5002
A62: 3011 | B62: =LevelbattleConfig!B58 -> 道侣许由-击败守护灵草的小妖 | C62: =VLOOKUP(A62,LevelbattleConfig!A:R,18,FALSE) -> 130 | D62: =_xlfn.TEXTJOIN(";",1,I62:K62) -> 1006 | E62: =_xlfn.TEXTJOIN(";",1,L62:N62) ->  | F62: =_xlfn.TEXTJOIN(";",1,O62:Q62) ->  | G62: =_xlfn.TEXTJOIN(";",1,R62:T62) ->  | H62: =_xlfn.TEXTJOIN(";",1,U62:W62) ->  | I62: 1006
A63: 3012 | B63: =LevelbattleConfig!B59 -> 道侣许由-击败秘境灵草守卫 | C63: =VLOOKUP(A63,LevelbattleConfig!A:R,18,FALSE) -> 150 | D63: 5005 | I63: 5005
A64: 3013 | B64: =LevelbattleConfig!B60 -> 道侣疯道人-击败果园守卫 | C64: =VLOOKUP(A64,LevelbattleConfig!A:R,18,FALSE) -> 160 | D64: =_xlfn.TEXTJOIN(";",1,I64:K64) -> 5001 | E64: =_xlfn.TEXTJOIN(";",1,L64:N64) ->  | F64: =_xlfn.TEXTJOIN(";",1,O64:Q64) ->  | G64: =_xlfn.TEXTJOIN(";",1,R64:T64) ->  | H64: =_xlfn.TEXTJOIN(";",1,U64:W64) ->  | I64: 5001
A65: 3014 | B65: =LevelbattleConfig!B61 -> 道侣疯道人-帮助疯道人驱妖 | C65: =VLOOKUP(A65,LevelbattleConfig!A:R,18,FALSE) -> 170 | D65: =_xlfn.TEXTJOIN(";",1,I65:K65) -> 5004 | E65: =_xlfn.TEXTJOIN(";",1,L65:N65) ->  | F65: =_xlfn.TEXTJOIN(";",1,O65:Q65) ->  | G65: =_xlfn.TEXTJOIN(";",1,R65:T65) ->  | H65: =_xlfn.TEXTJOIN(";",1,U65:W65) ->  | I65: 5004
A66: 3015 | B66: =LevelbattleConfig!B62 -> 道侣疯道人-击败疯道人 | C66: =VLOOKUP(A66,LevelbattleConfig!A:R,18,FALSE) -> 190 | D66: =_xlfn.TEXTJOIN(";",1,I66:K66) -> 9001 | E66: =_xlfn.TEXTJOIN(";",1,L66:N66) ->  | F66: =_xlfn.TEXTJOIN(";",1,O66:Q66) ->  | G66: =_xlfn.TEXTJOIN(";",1,R66:T66) ->  | H66: =_xlfn.TEXTJOIN(";",1,U66:W66) ->  | I66: 9001
A68: 10001 | B68: =LevelbattleConfig!B64 -> 引导 -开局第一场战斗 | C68: 202 | D68: =_xlfn.TEXTJOIN(";",1,I68:K68) -> 9005 | E68: =_xlfn.TEXTJOIN(";",1,L68:N68) ->  | F68: =_xlfn.TEXTJOIN(";",1,O68:Q68) ->  | G68: =_xlfn.TEXTJOIN(";",1,R68:T68) ->  | H68: =_xlfn.TEXTJOIN(";",1,U68:W68) ->  | I68: 9005 | AA68: 9006
A70: 4001 | B70: =VLOOKUP(A70,LevelbattleConfig!A:B,2,FALSE) -> 支线-海岸异象-妖物调查 | C70: =VLOOKUP(A70,LevelbattleConfig!A:R,18,FALSE) -> 1 | D70: =_xlfn.TEXTJOIN(";",1,I70:K70) -> 1005 | E70: =_xlfn.TEXTJOIN(";",1,L70:N70) ->  | F70: =_xlfn.TEXTJOIN(";",1,O70:Q70) ->  | G70: =_xlfn.TEXTJOIN(";",1,R70:T70) ->  | H70: =_xlfn.TEXTJOIN(";",1,U70:W70) ->  | I70: 1005
A71: 4002 | B71: =VLOOKUP(A71,LevelbattleConfig!A:B,2,FALSE) -> 支线-幽魂-幽魂石守护兽 | C71: =VLOOKUP(A71,LevelbattleConfig!A:R,18,FALSE) -> 1 | D71: =_xlfn.TEXTJOIN(";",1,I71:K71) -> 1006 | E71: =_xlfn.TEXTJOIN(";",1,L71:N71) ->  | F71: =_xlfn.TEXTJOIN(";",1,O71:Q71) ->  | G71: =_xlfn.TEXTJOIN(";",1,R71:T71) ->  | H71: =_xlfn.TEXTJOIN(";",1,U71:W71) ->  | I71: 1006
A72: 4003 | B72: =VLOOKUP(A72,LevelbattleConfig!A:B,2,FALSE) -> 支线-馨儿-迷雾妖怪 | C72: =VLOOKUP(A72,LevelbattleConfig!A:R,18,FALSE) -> 5 | D72: 1007 | I72: 1007
A73: 4004 | B73: =VLOOKUP(A73,LevelbattleConfig!A:B,2,FALSE) -> 支线-馨儿-发现信使 | C73: =VLOOKUP(A73,LevelbattleConfig!A:R,18,FALSE) -> 5 | D73: =_xlfn.TEXTJOIN(";",1,I73:K73) -> 1008 | E73: =_xlfn.TEXTJOIN(";",1,L73:N73) ->  | F73: =_xlfn.TEXTJOIN(";",1,O73:Q73) ->  | G73: =_xlfn.TEXTJOIN(";",1,R73:T73) ->  | H73: =_xlfn.TEXTJOIN(";",1,U73:W73) ->  | I73: 1008
A74: 4005 | B74: =VLOOKUP(A74,LevelbattleConfig!A:B,2,FALSE) -> 支线-馨儿-发现信使 | C74: =VLOOKUP(A74,LevelbattleConfig!A:R,18,FALSE) -> 5 | D74: 1001 | I74: 1001
A75: 4006 | B75: =VLOOKUP(A75,LevelbattleConfig!A:B,2,FALSE) -> 支线-馨儿-风灵鸟的宝藏 | C75: =VLOOKUP(A75,LevelbattleConfig!A:R,18,FALSE) -> 11 | D75: 1005 | I75: 1005
A76: 4007 | B76: =VLOOKUP(A76,LevelbattleConfig!A:B,2,FALSE) -> 支线-馨儿-浮岛灵泉的净化 | C76: =VLOOKUP(A76,LevelbattleConfig!A:R,18,FALSE) -> 11 | D76: 1006 | I76: 1006
A77: 4008 | B77: =VLOOKUP(A77,LevelbattleConfig!A:B,2,FALSE) -> 支线-馨儿-浮岛盗修的阴谋 | C77: =VLOOKUP(A77,LevelbattleConfig!A:R,18,FALSE) -> 11 | D77: 1007 | I77: 1007
A78: 4009 | B78: =VLOOKUP(A78,LevelbattleConfig!A:B,2,FALSE) -> 支线-柳轻烟-找到血海宗的人 | C78: =VLOOKUP(A78,LevelbattleConfig!A:R,18,FALSE) -> 21 | D78: 1008 | I78: 1008
A79: 4010 | B79: =VLOOKUP(A79,LevelbattleConfig!A:B,2,FALSE) -> 支线-柳轻烟-找到血海宗的人2 | C79: =VLOOKUP(A79,LevelbattleConfig!A:R,18,FALSE) -> 21 | D79: =_xlfn.TEXTJOIN(";",1,I79:K79) -> 1001 | E79: =_xlfn.TEXTJOIN(";",1,L79:N79) ->  | F79: =_xlfn.TEXTJOIN(";",1,O79:Q79) ->  | G79: =_xlfn.TEXTJOIN(";",1,R79:T79) ->  | H79: =_xlfn.TEXTJOIN(";",1,U79:W79) ->  | I79: 1001
A80: 4011 | B80: =VLOOKUP(A80,LevelbattleConfig!A:B,2,FALSE) -> 支线-馨儿-灵花 | C80: =VLOOKUP(A80,LevelbattleConfig!A:R,18,FALSE) -> 31 | D80: 1005 | I80: 1005
A81: 4012 | B81: =VLOOKUP(A81,LevelbattleConfig!A:B,2,FALSE) -> 支线-馨儿-散修劫掠 | C81: =VLOOKUP(A81,LevelbattleConfig!A:R,18,FALSE) -> 31 | D81: 1006 | I81: 1006
A82: 4013 | B82: =VLOOKUP(A82,LevelbattleConfig!A:B,2,FALSE) -> 支线-馨儿-散修劫掠2 | C82: =VLOOKUP(A82,LevelbattleConfig!A:R,18,FALSE) -> 31 | D82: 1007 | I82: 1007
A83: 4014 | B83: =VLOOKUP(A83,LevelbattleConfig!A:B,2,FALSE) -> 支线-楚云缪-青狼散人 | C83: =VLOOKUP(A83,LevelbattleConfig!A:R,18,FALSE) -> 31 | D83: 1008 | I83: 1008
A84: 4015 | B84: =VLOOKUP(A84,LevelbattleConfig!A:B,2,FALSE) -> 支线-血海宗的掠夺-血海宗的掠夺 | C84: =VLOOKUP(A84,LevelbattleConfig!A:R,18,FALSE) -> 41 | D84: 1001 | I84: 1001
A85: 4016 | B85: =VLOOKUP(A85,LevelbattleConfig!A:B,2,FALSE) -> 支线-林风-逃离追杀 | C85: =VLOOKUP(A85,LevelbattleConfig!A:R,18,FALSE) -> 41 | D85: 1005 | I85: 1005
A86: 4017 | B86: =VLOOKUP(A86,LevelbattleConfig!A:B,2,FALSE) -> 支线-林风-血海宗弟子 | C86: =VLOOKUP(A86,LevelbattleConfig!A:R,18,FALSE) -> 41 | D86: 1006 | I86: 1006
A87: 4018 | B87: =VLOOKUP(A87,LevelbattleConfig!A:B,2,FALSE) -> 支线-林风-血海宗弟子 | C87: =VLOOKUP(A87,LevelbattleConfig!A:R,18,FALSE) -> 41 | D87: =_xlfn.TEXTJOIN(";",1,I87:K87) -> 1007 | E87: =_xlfn.TEXTJOIN(";",1,L87:N87) ->  | F87: =_xlfn.TEXTJOIN(";",1,O87:Q87) ->  | G87: =_xlfn.TEXTJOIN(";",1,R87:T87) ->  | H87: =_xlfn.TEXTJOIN(";",1,U87:W87) ->  | I87: 1007
A88: 4019 | B88: =VLOOKUP(A88,LevelbattleConfig!A:B,2,FALSE) -> 支线-林风-血海宗弟子 | C88: =VLOOKUP(A88,LevelbattleConfig!A:R,18,FALSE) -> 41 | D88: 1008 | I88: 1008
A89: 4020 | B89: =VLOOKUP(A89,LevelbattleConfig!A:B,2,FALSE) -> 支线-林风后续-夺晶之战 | C89: =VLOOKUP(A89,LevelbattleConfig!A:R,18,FALSE) -> 61 | D89: 1001 | I89: 1001
A90: 4021 | B90: =VLOOKUP(A90,LevelbattleConfig!A:B,2,FALSE) -> 支线-林风后续-夺晶之战 | C90: =VLOOKUP(A90,LevelbattleConfig!A:R,18,FALSE) -> 61 | D90: 1005 | I90: 1005
A91: 4022 | B91: =VLOOKUP(A91,LevelbattleConfig!A:B,2,FALSE) -> 支线-林风后续-夺晶之战2-援军 | C91: =VLOOKUP(A91,LevelbattleConfig!A:R,18,FALSE) -> 61 | D91: 1006 | I91: 1006
A92: 4023 | B92: =VLOOKUP(A92,LevelbattleConfig!A:B,2,FALSE) -> 支线-林风-消灭妖邪 | C92: =VLOOKUP(A92,LevelbattleConfig!A:R,18,FALSE) -> 81 | D92: 1007 | I92: 1007
A93: 4024 | B93: =VLOOKUP(A93,LevelbattleConfig!A:B,2,FALSE) -> 支线-仙山异样-消灭仙山西边的妖物 | C93: =VLOOKUP(A93,LevelbattleConfig!A:R,18,FALSE) -> 111 | D93: 1008 | I93: 1008
A94: 4025 | B94: =VLOOKUP(A94,LevelbattleConfig!A:B,2,FALSE) -> 支线-仙山异样-仙山异样的秘密 | C94: =VLOOKUP(A94,LevelbattleConfig!A:R,18,FALSE) -> 131 | D94: 1001 | I94: 1001
A96: 5001 | B96: =VLOOKUP(A96,LevelbattleConfig!A:B,2,FALSE) -> 通用-法宝掉落-品质1 | C96: =VLOOKUP(A96,LevelbattleConfig!A:P,16,FALSE) -> -1 | D96: =_xlfn.TEXTJOIN(";",1,I96:K96) -> 1005 | E96: =_xlfn.TEXTJOIN(";",1,L96:N96) -> 60 | F96: =_xlfn.TEXTJOIN(";",1,O96:Q96) -> 60 | G96: =_xlfn.TEXTJOIN(";",1,R96:T96) -> 60 | H96: =_xlfn.TEXTJOIN(";",1,U96:W96) ->  | I96: 1005 | L96: 60 | O96: 60 | R96: 60
A97: 5002 | B97: =VLOOKUP(A97,LevelbattleConfig!A:B,2,FALSE) -> 通用-法宝掉落-品质2 | C97: =VLOOKUP(A97,LevelbattleConfig!A:P,16,FALSE) -> -1 | D97: 1006 | E97: =_xlfn.TEXTJOIN(";",1,L97:N97) -> 70 | F97: =_xlfn.TEXTJOIN(";",1,O97:Q97) -> 70 | G97: =_xlfn.TEXTJOIN(";",1,R97:T97) -> 70 | H97: =_xlfn.TEXTJOIN(";",1,U97:W97) ->  | I97: 1006 | L97: 70 | O97: 70 | R97: 70
A98: 5003 | B98: =VLOOKUP(A98,LevelbattleConfig!A:B,2,FALSE) -> 通用-法宝掉落-品质3 | C98: =VLOOKUP(A98,LevelbattleConfig!A:P,16,FALSE) -> -1 | D98: 1007 | E98: 80 | F98: 80 | G98: 80 | I98: 1007 | L98: 80 | O98: 80 | R98: 80
A99: 5004 | B99: =VLOOKUP(A99,LevelbattleConfig!A:B,2,FALSE) -> 通用-法宝掉落-品质4 | C99: =VLOOKUP(A99,LevelbattleConfig!A:P,16,FALSE) -> -1 | D99: 1008 | E99: 90 | F99: 90 | G99: 90 | I99: 1008 | L99: 90 | O99: 90 | R99: 90
A100: 5005 | B100: =VLOOKUP(A100,LevelbattleConfig!A:B,2,FALSE) -> 通用-法宝掉落-品质5 | C100: =VLOOKUP(A100,LevelbattleConfig!A:P,16,FALSE) -> -1 | D100: 1001 | E100: 100 | F100: 100 | G100: 100 | I100: 1001 | L100: 100 | O100: 100 | R100: 100
A101: 5006 | B101: =VLOOKUP(A101,LevelbattleConfig!A:B,2,FALSE) -> 通用-功法掉落-品质1 | C101: =VLOOKUP(A101,LevelbattleConfig!A:P,16,FALSE) -> -1 | D101: 1005 | E101: 60 | F101: 60 | G101: 60 | I101: 1005 | L101: 60 | O101: 60 | R101: 60
A102: 5007 | B102: =VLOOKUP(A102,LevelbattleConfig!A:B,2,FALSE) -> 通用-功法掉落-品质2 | C102: =VLOOKUP(A102,LevelbattleConfig!A:P,16,FALSE) -> -1 | D102: 1006 | E102: 70 | F102: 70 | G102: 70 | I102: 1006 | L102: 70 | O102: 70 | R102: 70
A103: 5008 | B103: =VLOOKUP(A103,LevelbattleConfig!A:B,2,FALSE) -> 通用-功法掉落-品质3 | C103: =VLOOKUP(A103,LevelbattleConfig!A:P,16,FALSE) -> -1 | D103: 1007 | E103: 80 | F103: 80 | G103: 80 | I103: 1007 | L103: 80 | O103: 80 | R103: 80
A104: 5009 | B104: =VLOOKUP(A104,LevelbattleConfig!A:B,2,FALSE) -> 通用-功法掉落-品质4 | C104: =VLOOKUP(A104,LevelbattleConfig!A:P,16,FALSE) -> -1 | D104: 1008 | E104: 90 | F104: 90 | G104: 90 | I104: 1008 | L104: 90 | O104: 90 | R104: 90
A105: 5010 | B105: =VLOOKUP(A105,LevelbattleConfig!A:B,2,FALSE) -> 通用-功法掉落-品质5 | C105: =VLOOKUP(A105,LevelbattleConfig!A:P,16,FALSE) -> -1 | D105: 1001 | E105: 100 | F105: 100 | G105: 100 | I105: 1001 | L105: 100 | O105: 100 | R105: 100
A107: 2001 | B107: 命运峰-第1层 | C107: =VLOOKUP(A107,[2]TowerInfoConfig!$H:$O,8,FALSE) -> 20 | D107: =_xlfn.TEXTJOIN(";",1,I107:K107) -> 5001 | E107: =_xlfn.TEXTJOIN(";",1,L107:N107) ->  | F107: =_xlfn.TEXTJOIN(";",1,O107:Q107) ->  | G107: =_xlfn.TEXTJOIN(";",1,R107:T107) ->  | H107: =_xlfn.TEXTJOIN(";",1,U107:W107) ->  | I107: 5001
A108: 2002 | B108: 命运峰-第2层 | C108: =VLOOKUP(A108,[2]TowerInfoConfig!$H:$O,8,FALSE) -> 23 | D108: 5002 | I108: 5002
A109: 2003 | B109: 命运峰-第3层 | C109: =VLOOKUP(A109,[2]TowerInfoConfig!$H:$O,8,FALSE) -> 26 | D109: 5003 | I109: 5003
A110: 2004 | B110: 命运峰-第4层 | C110: =VLOOKUP(A110,[2]TowerInfoConfig!$H:$O,8,FALSE) -> 29 | D110: 5004 | I110: 5004
A111: 2005 | B111: 命运峰-第5层 | C111: =VLOOKUP(A111,[2]TowerInfoConfig!$H:$O,8,FALSE) -> 32 | D111: 9001 | I111: 9001
A112: 2006 | B112: 命运峰-第6层 | C112: =VLOOKUP(A112,[2]TowerInfoConfig!$H:$O,8,FALSE) -> 35 | D112: 5004 | I112: 5004
A113: 2007 | B113: 命运峰-第7层 | C113: =VLOOKUP(A113,[2]TowerInfoConfig!$H:$O,8,FALSE) -> 38 | D113: 5005 | I113: 5005
A114: 2008 | B114: 命运峰-第8层 | C114: =VLOOKUP(A114,[2]TowerInfoConfig!$H:$O,8,FALSE) -> 41 | D114: 5006 | I114: 5006
A115: 2009 | B115: 命运峰-第9层 | C115: =VLOOKUP(A115,[2]TowerInfoConfig!$H:$O,8,FALSE) -> 44 | D115: 5007 | I115: 5007
A116: 2010 | B116: 命运峰-第10层 | C116: =VLOOKUP(A116,[2]TowerInfoConfig!$H:$O,8,FALSE) -> 47 | D116: 9002 | I116: 9002
A117: 2011 | B117: 命运峰-第11层 | C117: =VLOOKUP(A117,[2]TowerInfoConfig!$H:$O,8,FALSE) -> 50 | D117: 5001 | I117: 5001
A118: 2012 | B118: 命运峰-第12层 | C118: =VLOOKUP(A118,[2]TowerInfoConfig!$H:$O,8,FALSE) -> 53 | D118: 5002 | I118: 5002
A119: 2013 | B119: 命运峰-第13层 | C119: =VLOOKUP(A119,[2]TowerInfoConfig!$H:$O,8,FALSE) -> 56 | D119: 5003 | I119: 5003
A120: 2014 | B120: 命运峰-第14层 | C120: =VLOOKUP(A120,[2]TowerInfoConfig!$H:$O,8,FALSE) -> 59 | D120: 5004 | I120: 5004
A121: 2015 | B121: 命运峰-第15层 | C121: =VLOOKUP(A121,[2]TowerInfoConfig!$H:$O,8,FALSE) -> 62 | D121: 9003 | I121: 9003
A122: 2016 | B122: 命运峰-第16层 | C122: =VLOOKUP(A122,[2]TowerInfoConfig!$H:$O,8,FALSE) -> 65 | D122: 5004 | I122: 5004
A123: 2017 | B123: 命运峰-第17层 | C123: =VLOOKUP(A123,[2]TowerInfoConfig!$H:$O,8,FALSE) -> 68 | D123: 5005 | I123: 5005
A124: 2018 | B124: 命运峰-第18层 | C124: =VLOOKUP(A124,[2]TowerInfoConfig!$H:$O,8,FALSE) -> 71 | D124: 5006 | I124: 5006
A125: 2019 | B125: 命运峰-第19层 | C125: =VLOOKUP(A125,[2]TowerInfoConfig!$H:$O,8,FALSE) -> 74 | D125: 5007 | I125: 5007
A126: 2020 | B126: 命运峰-第20层 | C126: =VLOOKUP(A126,[2]TowerInfoConfig!$H:$O,8,FALSE) -> 77 | D126: 9004 | I126: 9004
A127: 2021 | B127: 命运峰-第21层 | C127: =VLOOKUP(A127,[2]TowerInfoConfig!$H:$O,8,FALSE) -> 80 | D127: =_xlfn.TEXTJOIN(";",1,I127:K127) -> 5001 | E127: =_xlfn.TEXTJOIN(";",1,L127:N127) ->  | F127: =_xlfn.TEXTJOIN(";",1,O127:Q127) ->  | G127: =_xlfn.TEXTJOIN(";",1,R127:T127) ->  | H127: =_xlfn.TEXTJOIN(";",1,U127:W127) ->  | I127: 5001
A128: 2022 | B128: 命运峰-第22层 | C128: =VLOOKUP(A128,[2]TowerInfoConfig!$H:$O,8,FALSE) -> 83 | D128: 5002 | I128: 5002
A129: 2023 | B129: 命运峰-第23层 | C129: =VLOOKUP(A129,[2]TowerInfoConfig!$H:$O,8,FALSE) -> 86 | D129: 5003 | I129: 5003
A130: 2024 | B130: 命运峰-第24层 | C130: =VLOOKUP(A130,[2]TowerInfoConfig!$H:$O,8,FALSE) -> 89 | D130: 5004 | I130: 5004
A131: 2025 | B131: 命运峰-第25层 | C131: =VLOOKUP(A131,[2]TowerInfoConfig!$H:$O,8,FALSE) -> 92 | D131: 9005 | I131: 9005
A132: 2026 | B132: 命运峰-第26层 | C132: =VLOOKUP(A132,[2]TowerInfoConfig!$H:$O,8,FALSE) -> 95 | D132: 5004 | I132: 5004
A133: 2027 | B133: 命运峰-第27层 | C133: =VLOOKUP(A133,[2]TowerInfoConfig!$H:$O,8,FALSE) -> 98 | D133: 5005 | I133: 5005
A134: 2028 | B134: 命运峰-第28层 | C134: =VLOOKUP(A134,[2]TowerInfoConfig!$H:$O,8,FALSE) -> 101 | D134: 5006 | I134: 5006
A135: 2029 | B135: 命运峰-第29层 | C135: =VLOOKUP(A135,[2]TowerInfoConfig!$H:$O,8,FALSE) -> 104 | D135: 5007 | I135: 5007
A136: 2030 | B136: 命运峰-第30层 | C136: =VLOOKUP(A136,[2]TowerInfoConfig!$H:$O,8,FALSE) -> 107 | D136: 9006 | I136: 9006
A137: 2031 | B137: 命运峰-第31层 | C137: =VLOOKUP(A137,[2]TowerInfoConfig!$H:$O,8,FALSE) -> 110 | D137: 5001 | I137: 5001
A138: 2032 | B138: 命运峰-第32层 | C138: =VLOOKUP(A138,[2]TowerInfoConfig!$H:$O,8,FALSE) -> 113 | D138: 5002 | I138: 5002
A139: 2033 | B139: 命运峰-第33层 | C139: =VLOOKUP(A139,[2]TowerInfoConfig!$H:$O,8,FALSE) -> 116 | D139: 5003 | I139: 5003
A140: 2034 | B140: 命运峰-第34层 | C140: =VLOOKUP(A140,[2]TowerInfoConfig!$H:$O,8,FALSE) -> 119 | D140: 5004 | I140: 5004
A141: 2035 | B141: 命运峰-第35层 | C141: =VLOOKUP(A141,[2]TowerInfoConfig!$H:$O,8,FALSE) -> 122 | D141: 9001 | I141: 9001
A142: 2036 | B142: 命运峰-第36层 | C142: =VLOOKUP(A142,[2]TowerInfoConfig!$H:$O,8,FALSE) -> 125 | D142: 5004 | I142: 5004
A143: 2037 | B143: 命运峰-第37层 | C143: =VLOOKUP(A143,[2]TowerInfoConfig!$H:$O,8,FALSE) -> 128 | D143: 5005 | I143: 5005
A144: 2038 | B144: 命运峰-第38层 | C144: =VLOOKUP(A144,[2]TowerInfoConfig!$H:$O,8,FALSE) -> 131 | D144: 5006 | I144: 5006
A145: 2039 | B145: 命运峰-第39层 | C145: =VLOOKUP(A145,[2]TowerInfoConfig!$H:$O,8,FALSE) -> 134 | D145: 5007 | I145: 5007
A146: 2040 | B146: 命运峰-第40层 | C146: =VLOOKUP(A146,[2]TowerInfoConfig!$H:$O,8,FALSE) -> 137 | D146: 9002 | I146: 9002
A147: 2041 | B147: 命运峰-第41层 | C147: =VLOOKUP(A147,[2]TowerInfoConfig!$H:$O,8,FALSE) -> 140 | D147: 5001 | I147: 5001
A148: 2042 | B148: 命运峰-第42层 | C148: =VLOOKUP(A148,[2]TowerInfoConfig!$H:$O,8,FALSE) -> 143 | D148: 5002 | I148: 5002
A149: 2043 | B149: 命运峰-第43层 | C149: =VLOOKUP(A149,[2]TowerInfoConfig!$H:$O,8,FALSE) -> 146 | D149: 5003 | I149: 5003
A150: 2044 | B150: 命运峰-第44层 | C150: =VLOOKUP(A150,[2]TowerInfoConfig!$H:$O,8,FALSE) -> 149 | D150: 5004 | I150: 5004
A151: 2045 | B151: 命运峰-第45层 | C151: =VLOOKUP(A151,[2]TowerInfoConfig!$H:$O,8,FALSE) -> 152 | D151: 9003 | I151: 9003
A152: 2046 | B152: 命运峰-第46层 | C152: =VLOOKUP(A152,[2]TowerInfoConfig!$H:$O,8,FALSE) -> 155 | D152: 5004 | I152: 5004
A153: 2047 | B153: 命运峰-第47层 | C153: =VLOOKUP(A153,[2]TowerInfoConfig!$H:$O,8,FALSE) -> 158 | D153: 5005 | I153: 5005
A154: 2048 | B154: 命运峰-第48层 | C154: =VLOOKUP(A154,[2]TowerInfoConfig!$H:$O,8,FALSE) -> 161 | D154: 5006 | I154: 5006
A155: 2049 | B155: 命运峰-第49层 | C155: =VLOOKUP(A155,[2]TowerInfoConfig!$H:$O,8,FALSE) -> 164 | D155: 5007 | I155: 5007
A156: 2050 | B156: 命运峰-第50层 | C156: =VLOOKUP(A156,[2]TowerInfoConfig!$H:$O,8,FALSE) -> 167 | D156: 9004 | I156: 9004
A157: 2051 | B157: 命运峰-第51层 | C157: =VLOOKUP(A157,[2]TowerInfoConfig!$H:$O,8,FALSE) -> 170 | D157: 5001 | I157: 5001
A158: 2052 | B158: 命运峰-第52层 | C158: =VLOOKUP(A158,[2]TowerInfoConfig!$H:$O,8,FALSE) -> 173 | D158: 5002 | I158: 5002
A159: 2053 | B159: 命运峰-第53层 | C159: =VLOOKUP(A159,[2]TowerInfoConfig!$H:$O,8,FALSE) -> 176 | D159: 5003 | I159: 5003
A160: 2054 | B160: 命运峰-第54层 | C160: =VLOOKUP(A160,[2]TowerInfoConfig!$H:$O,8,FALSE) -> 179 | D160: 5004 | I160: 5004
A161: 2055 | B161: 命运峰-第55层 | C161: =VLOOKUP(A161,[2]TowerInfoConfig!$H:$O,8,FALSE) -> 182 | D161: 9005 | I161: 9005
A162: 2056 | B162: 命运峰-第56层 | C162: =VLOOKUP(A162,[2]TowerInfoConfig!$H:$O,8,FALSE) -> 185 | D162: 5004 | I162: 5004
A163: 2057 | B163: 命运峰-第57层 | C163: =VLOOKUP(A163,[2]TowerInfoConfig!$H:$O,8,FALSE) -> 188 | D163: 5005 | I163: 5005
A164: 2058 | B164: 命运峰-第58层 | C164: =VLOOKUP(A164,[2]TowerInfoConfig!$H:$O,8,FALSE) -> 191 | D164: 5006 | I164: 5006
A165: 2059 | B165: 命运峰-第59层 | C165: =VLOOKUP(A165,[2]TowerInfoConfig!$H:$O,8,FALSE) -> 194 | D165: 5007 | I165: 5007
A166: 2060 | B166: 命运峰-第60层 | C166: =VLOOKUP(A166,[2]TowerInfoConfig!$H:$O,8,FALSE) -> 197 | D166: 9006 | I166: 9006
A167: 2061 | B167: 命运峰-第61层 | C167: =VLOOKUP(A167,[2]TowerInfoConfig!$H:$O,8,FALSE) -> 200 | D167: 5001 | I167: 5001
A168: 2062 | B168: 命运峰-第62层 | C168: =VLOOKUP(A168,[2]TowerInfoConfig!$H:$O,8,FALSE) -> 203 | D168: 5002 | I168: 5002
A169: 2063 | B169: 命运峰-第63层 | C169: =VLOOKUP(A169,[2]TowerInfoConfig!$H:$O,8,FALSE) -> 206 | D169: 5003 | I169: 5003
A170: 2064 | B170: 命运峰-第64层 | C170: =VLOOKUP(A170,[2]TowerInfoConfig!$H:$O,8,FALSE) -> 209 | D170: 5004 | I170: 5004
A171: 2065 | B171: 命运峰-第65层 | C171: =VLOOKUP(A171,[2]TowerInfoConfig!$H:$O,8,FALSE) -> 212 | D171: 9001 | I171: 9001
A172: 2066 | B172: 命运峰-第66层 | C172: =VLOOKUP(A172,[2]TowerInfoConfig!$H:$O,8,FALSE) -> 215 | D172: 5004 | I172: 5004
A173: 2067 | B173: 命运峰-第67层 | C173: =VLOOKUP(A173,[2]TowerInfoConfig!$H:$O,8,FALSE) -> 218 | D173: 5005 | I173: 5005
A174: 2068 | B174: 命运峰-第68层 | C174: =VLOOKUP(A174,[2]TowerInfoConfig!$H:$O,8,FALSE) -> 221 | D174: 5006 | I174: 5006
A175: 2069 | B175: 命运峰-第69层 | C175: =VLOOKUP(A175,[2]TowerInfoConfig!$H:$O,8,FALSE) -> 224 | D175: 5007 | I175: 5007
A176: 2070 | B176: 命运峰-第70层 | C176: =VLOOKUP(A176,[2]TowerInfoConfig!$H:$O,8,FALSE) -> 227 | D176: 9002 | I176: 9002
A177: 2071 | B177: 命运峰-第71层 | C177: =VLOOKUP(A177,[2]TowerInfoConfig!$H:$O,8,FALSE) -> 230 | D177: 5001 | I177: 5001
A178: 2072 | B178: 命运峰-第72层 | C178: =VLOOKUP(A178,[2]TowerInfoConfig!$H:$O,8,FALSE) -> 233 | D178: 5002 | I178: 5002
A179: 2073 | B179: 命运峰-第73层 | C179: =VLOOKUP(A179,[2]TowerInfoConfig!$H:$O,8,FALSE) -> 236 | D179: 5003 | I179: 5003
A180: 2074 | B180: 命运峰-第74层 | C180: =VLOOKUP(A180,[2]TowerInfoConfig!$H:$O,8,FALSE) -> 239 | D180: 5004 | I180: 5004
A181: 2075 | B181: 命运峰-第75层 | C181: =VLOOKUP(A181,[2]TowerInfoConfig!$H:$O,8,FALSE) -> 242 | D181: 9003 | I181: 9003
A182: 2076 | B182: 命运峰-第76层 | C182: =VLOOKUP(A182,[2]TowerInfoConfig!$H:$O,8,FALSE) -> 245 | D182: 5004 | I182: 5004
A183: 2077 | B183: 命运峰-第77层 | C183: =VLOOKUP(A183,[2]TowerInfoConfig!$H:$O,8,FALSE) -> 248 | D183: 5005 | I183: 5005
A184: 2078 | B184: 命运峰-第78层 | C184: =VLOOKUP(A184,[2]TowerInfoConfig!$H:$O,8,FALSE) -> 251 | D184: 5006 | I184: 5006
A185: 2079 | B185: 命运峰-第79层 | C185: =VLOOKUP(A185,[2]TowerInfoConfig!$H:$O,8,FALSE) -> 254 | D185: 5007 | I185: 5007
A186: 2080 | B186: 命运峰-第80层 | C186: =VLOOKUP(A186,[2]TowerInfoConfig!$H:$O,8,FALSE) -> 257 | D186: 9004 | I186: 9004
A187: 2081 | B187: 命运峰-第81层 | C187: =VLOOKUP(A187,[2]TowerInfoConfig!$H:$O,8,FALSE) -> 260 | D187: 5001 | I187: 5001
A188: 2082 | B188: 命运峰-第82层 | C188: =VLOOKUP(A188,[2]TowerInfoConfig!$H:$O,8,FALSE) -> 263 | D188: 5002 | I188: 5002
A189: 2083 | B189: 命运峰-第83层 | C189: =VLOOKUP(A189,[2]TowerInfoConfig!$H:$O,8,FALSE) -> 266 | D189: 5003 | I189: 5003
A190: 2084 | B190: 命运峰-第84层 | C190: =VLOOKUP(A190,[2]TowerInfoConfig!$H:$O,8,FALSE) -> 268 | D190: 5004 | I190: 5004
A191: 2085 | B191: 命运峰-第85层 | C191: =VLOOKUP(A191,[2]TowerInfoConfig!$H:$O,8,FALSE) -> 270 | D191: =_xlfn.TEXTJOIN(";",1,I191:K191) -> 9005 | E191: =_xlfn.TEXTJOIN(";",1,L191:N191) ->  | F191: =_xlfn.TEXTJOIN(";",1,O191:Q191) ->  | G191: =_xlfn.TEXTJOIN(";",1,R191:T191) ->  | H191: =_xlfn.TEXTJOIN(";",1,U191:W191) ->  | I191: 9005
A192: 2086 | B192: 命运峰-第86层 | C192: =VLOOKUP(A192,[2]TowerInfoConfig!$H:$O,8,FALSE) -> 272 | D192: 5004 | I192: 5004
A193: 2087 | B193: 命运峰-第87层 | C193: =VLOOKUP(A193,[2]TowerInfoConfig!$H:$O,8,FALSE) -> 274 | D193: 5005 | I193: 5005
A194: 2088 | B194: 命运峰-第88层 | C194: =VLOOKUP(A194,[2]TowerInfoConfig!$H:$O,8,FALSE) -> 276 | D194: 5006 | I194: 5006
A195: 2089 | B195: 命运峰-第89层 | C195: =VLOOKUP(A195,[2]TowerInfoConfig!$H:$O,8,FALSE) -> 278 | D195: 5007 | I195: 5007
A196: 2090 | B196: 命运峰-第90层 | C196: =VLOOKUP(A196,[2]TowerInfoConfig!$H:$O,8,FALSE) -> 280 | D196: 9006 | I196: 9006
A197: 2091 | B197: 命运峰-第91层 | C197: =VLOOKUP(A197,[2]TowerInfoConfig!$H:$O,8,FALSE) -> 282 | D197: 5001 | I197: 5001
A198: 2092 | B198: 命运峰-第92层 | C198: =VLOOKUP(A198,[2]TowerInfoConfig!$H:$O,8,FALSE) -> 284 | D198: 5002 | I198: 5002
A199: 2093 | B199: 命运峰-第93层 | C199: =VLOOKUP(A199,[2]TowerInfoConfig!$H:$O,8,FALSE) -> 286 | D199: 5003 | I199: 5003
A200: 2094 | B200: 命运峰-第94层 | C200: =VLOOKUP(A200,[2]TowerInfoConfig!$H:$O,8,FALSE) -> 288 | D200: 5004 | I200: 5004
A201: 2095 | B201: 命运峰-第95层 | C201: =VLOOKUP(A201,[2]TowerInfoConfig!$H:$O,8,FALSE) -> 290 | D201: 9005 | I201: 9005
A202: 2096 | B202: 命运峰-第96层 | C202: =VLOOKUP(A202,[2]TowerInfoConfig!$H:$O,8,FALSE) -> 292 | D202: 5004 | I202: 5004
A203: 2097 | B203: 命运峰-第97层 | C203: =VLOOKUP(A203,[2]TowerInfoConfig!$H:$O,8,FALSE) -> 294 | D203: 5005 | I203: 5005
A204: 2098 | B204: 命运峰-第98层 | C204: =VLOOKUP(A204,[2]TowerInfoConfig!$H:$O,8,FALSE) -> 296 | D204: 5006 | I204: 5006
A205: 2099 | B205: 命运峰-第99层 | C205: =VLOOKUP(A205,[2]TowerInfoConfig!$H:$O,8,FALSE) -> 298 | D205: 5007 | I205: 5007
A206: 2100 | B206: 命运峰-第100层 | C206: =VLOOKUP(A206,[2]TowerInfoConfig!$H:$O,8,FALSE) -> 300 | D206: 9006 | I206: 9006

Sheet 强度验算
B1: 生存修正 | C1: 生命 | D1: 攻击修正 | E1: 对拼修正 | F1: 秒伤 | G1: 怪物存活时间 | I1: 玩家打怪物 | L1: 怪物打玩家
I2: 阶段1 | J2: 阶段2 | L2: 阶段1 | M2: 阶段2
A3: 怪物1 | C3: 2000 | F3: 100 | G3: =C3/100 -> 20 | I3: =G3*F3 -> 2000
G5: 1.2 | I5: =SUM(I6:I7) -> 1800 | J5: =SUM(J6:J7) -> 600 | L5: =SUM(L6:L7) -> 1846.05 | M5: =SUM(M6:M7) -> 153.95 | N5: =SUM(L5:M5) -> 2000
A6: 主怪 | B6: 0.9 | C6: =C$3*$B6 -> 1800 | D6: 0.769 | E6: =B6/SUM(B$6:B$7) -> 0.75 | F6: =F$3*$D6 -> 76.9 | G6: =C6/F$3 -> 18 | H6: =B6/D6 -> 1.170351105 | I6: =G6*F$3 -> 1800 | L6: =F6*G6 -> 1384.2
A7: 辅怪1 | B7: =C7/C$3 -> 0.3 | C7: =J7 -> 600 | D7: =F7/F$3 -> 0.2565833333 | E7: =B7/SUM(B$6:B$7) -> 0.25 | F7: =(C$3-L6)/G7 -> 25.65833333 | G7: =G$3*G5 -> 24 | H7: =B7/D7 -> 1.169210783 | J7: =F$3*(G7-G6) -> 600 | L7: =F7*G6 -> 461.85 | M7: =C$3-L5 -> 153.95
G9: =G5 -> 1.2 | I9: =SUM(I10:I11) -> 1600 | J9: =SUM(J10:J11) -> 800 | L9: =SUM(L10:L11) -> 1714.133333 | M9: =SUM(M10:M11) -> 285.8666667 | N9: =SUM(L9:M9) -> 2000
A10: 主怪 | B10: 0.8 | C10: =C$3*$B10 -> 1600 | D10: 0.714 | E10: =B10/SUM(B$10:B$11) -> 0.6666666667 | F10: =F$3*$D10 -> 71.4 | G10: =C10/F$3 -> 16 | H10: =B10/D10 -> 1.120448179 | I10: =G10*F$3 -> 1600 | L10: =F10*G10 -> 1142.4
A11: 辅怪1 | B11: =C11/C$3 -> 0.4 | C11: =J11 -> 800 | D11: =F11/F$3 -> 0.3573333333 | E11: =B11/SUM(B$10:B$11) -> 0.3333333333 | F11: =(C$3-L10)/G11 -> 35.73333333 | G11: =G$3*G9 -> 24 | H11: =B11/D11 -> 1.119402985 | J11: =F$3*(G11-G10) -> 800 | L11: =F11*G10 -> 571.7333333 | M11: =C$3-L9 -> 285.8666667
G13: =G5 -> 1.2 | I13: =SUM(I14:I15) -> 1400 | J13: =SUM(J14:J15) -> 1000 | L13: =SUM(L14:L15) -> 1541.166667 | M13: =SUM(M14:M15) -> 458.8333333 | N13: =SUM(L13:M13) -> 2000
A14: 主怪 | B14: 0.7 | C14: =C$3*$B14 -> 1400 | D14: 0.642 | E14: =B14/SUM(B$14:B$15) -> 0.5833333333 | F14: =F$3*$D14 -> 64.2 | G14: =C14/F$3 -> 14 | H14: =B14/D14 -> 1.090342679 | I14: =G14*F$3 -> 1400 | L14: =F14*G14 -> 898.8
A15: 辅怪1 | B15: =C15/C$3 -> 0.5 | C15: =J15 -> 1000 | D15: =F15/F$3 -> 0.4588333333 | E15: =B15/SUM(B$14:B$15) -> 0.4166666667 | F15: =(C$3-L14)/G15 -> 45.88333333 | G15: =G$3*G13 -> 24 | H15: =B15/D15 -> 1.089720305 | J15: =F$3*(G15-G14) -> 1000 | L15: =F15*G14 -> 642.3666667 | M15: =C$3-L13 -> 458.8333333
G17: =G5 -> 1.2 | I17: =SUM(I18:I19) -> 1200 | J17: =SUM(J18:J19) -> 1200 | L17: =SUM(L18:L19) -> 1333.6 | M17: =SUM(M18:M19) -> 666.4 | N17: =SUM(L17:M17) -> 2000
A18: 主怪 | B18: 0.6 | C18: =C$3*$B18 -> 1200 | D18: 0.556 | E18: =B18/SUM(B$18:B$19) -> 0.5 | F18: =F$3*$D18 -> 55.6 | G18: =C18/F$3 -> 12 | H18: =B18/D18 -> 1.079136691 | I18: =G18*F$3 -> 1200 | L18: =F18*G18 -> 667.2
A19: 辅怪1 | B19: =C19/C$3 -> 0.6 | C19: =J19 -> 1200 | D19: =F19/F$3 -> 0.5553333333 | E19: =B19/SUM(B$18:B$19) -> 0.5 | F19: =(C$3-L18)/G19 -> 55.53333333 | G19: =G$3*G17 -> 24 | H19: =B19/D19 -> 1.080432173 | J19: =F$3*(G19-G18) -> 1200 | L19: =F19*G18 -> 666.4 | M19: =C$3-L17 -> 666.4
G24: 1.3 | I24: =SUM(I25:I26) -> 1800 | J24: =SUM(J25:J26) -> 800 | L24: =SUM(L25:L26) -> 1810.523077 | M24: =SUM(M25:M26) -> 189.4769231 | N24: =SUM(L24:M24) -> 2000
A25: 主怪 | B25: 0.9 | C25: =C$3*$B25 -> 1800 | D25: 0.769 | F25: =F$3*$D25 -> 76.9 | G25: =C25/F$3 -> 18 | H25: =B25/D25 -> 1.170351105 | I25: =G25*F$3 -> 1800 | L25: =F25*G25 -> 1384.2
A26: 辅怪1 | B26: =C26/C$3 -> 0.4 | C26: =J26 -> 800 | D26: =F26/F$3 -> 0.2368461538 | F26: =(C$3-L25)/G26 -> 23.68461538 | G26: =G$3*G24 -> 26 | H26: =B26/D26 -> 1.688860019 | J26: =F$3*(G26-G25) -> 800 | L26: =F26*G25 -> 426.3230769 | M26: =C$3-L24 -> 189.4769231
G28: =G24 -> 1.3 | I28: =SUM(I29:I30) -> 1600 | J28: =SUM(J29:J30) -> 1000 | L28: =SUM(L29:L30) -> 1670.153846 | M28: =SUM(M29:M30) -> 329.8461538 | N28: =SUM(L28:M28) -> 2000
A29: 主怪 | B29: 0.8 | C29: =C$3*$B29 -> 1600 | D29: 0.714 | F29: =F$3*$D29 -> 71.4 | G29: =C29/F$3 -> 16 | H29: =B29/D29 -> 1.120448179 | I29: =G29*F$3 -> 1600 | L29: =F29*G29 -> 1142.4
A30: 辅怪1 | B30: =C30/C$3 -> 0.5 | C30: =J30 -> 1000 | D30: =F30/F$3 -> 0.3298461538 | F30: =(C$3-L29)/G30 -> 32.98461538 | G30: =G$3*G28 -> 26 | H30: =B30/D30 -> 1.515858209 | J30: =F$3*(G30-G29) -> 1000 | L30: =F30*G29 -> 527.7538462 | M30: =C$3-L28 -> 329.8461538
G32: =G24 -> 1.3 | I32: =SUM(I33:I34) -> 1400 | J32: =SUM(J33:J34) -> 1200 | L32: =SUM(L33:L34) -> 1491.753846 | M32: =SUM(M33:M34) -> 508.2461538 | N32: =SUM(L32:M32) -> 2000
A33: 主怪 | B33: 0.7 | C33: =C$3*$B33 -> 1400 | D33: 0.642 | F33: =F$3*$D33 -> 64.2 | G33: =C33/F$3 -> 14 | H33: =B33/D33 -> 1.090342679 | I33: =G33*F$3 -> 1400 | L33: =F33*G33 -> 898.8
A34: 辅怪1 | B34: =C34/C$3 -> 0.6 | C34: =J34 -> 1200 | D34: =F34/F$3 -> 0.4235384615 | F34: =(C$3-L33)/G34 -> 42.35384615 | G34: =G$3*G32 -> 26 | H34: =B34/D34 -> 1.416636397 | J34: =F$3*(G34-G33) -> 1200 | L34: =F34*G33 -> 592.9538462 | M34: =C$3-L32 -> 508.2461538
G36: =G24 -> 1.3 | I36: =SUM(I37:I38) -> 1200 | J36: =SUM(J37:J38) -> 1400 | L36: =SUM(L37:L38) -> 1282.338462 | M36: =SUM(M37:M38) -> 717.6615385 | N36: =SUM(L36:M36) -> 2000
A37: 主怪 | B37: 0.6 | C37: =C$3*$B37 -> 1200 | D37: 0.556 | F37: =F$3*$D37 -> 55.6 | G37: =C37/F$3 -> 12 | H37: =B37/D37 -> 1.079136691 | I37: =G37*F$3 -> 1200 | L37: =F37*G37 -> 667.2
A38: 辅怪1 | B38: =C38/C$3 -> 0.7 | C38: =J38 -> 1400 | D38: =F38/F$3 -> 0.5126153846 | F38: =(C$3-L37)/G38 -> 51.26153846 | G38: =G$3*G36 -> 26 | H38: =B38/D38 -> 1.365546218 | J38: =F$3*(G38-G37) -> 1400 | L38: =F38*G37 -> 615.1384615 | M38: =C$3-L36 -> 717.6615385
